Workbook

Sheet Open
H2: REO $2000 Added NIGHT
A3: Futurity | B3: Der | C3: HS | D3: Age Inct. | E3: Open C/O | F3: YOU | G3: Draw | H3: Rider Name | I3: Horse Name | J3: Pen | K3: Time | L3: Final Time | M3: Placing | N3: Money Earned | P3: D Placing | R3: Split
B4: X | G4: 107 | H4: Andrea Cline | I4: Blurry Bug Leo | K4: 15.553 | M4: 1D 1st | N4: 1082.88 | P4: 1D
G5: 221 | H5: Megan Swint | I5: For Heavens Seis | K5: 15.598 | M5: 1D 2nd | N5: 902.4 | P5: 2D | R5: 0.5
D6: A | G6: S1 | H6: Jamie Wilson | I6: A Streak Of Phame | K6: 15.661 | M6: 1D 3rd | N6: 767.04 | P6: 3D | R6: 0.5
D7: S | G7: 198 | H7: Martha Smith | I7: Firewatermakemehappy | K7: 15.662 | M7: 1D 4th | N7: 586.56 | P7: 4D | R7: 0.5
G8: 143 | H8: Cheyenne Wimberley | I8: VQ Sucker Punch | K8: 15.711 | M8: 1D 5th | N8: 451.2 | P8: 5D | R8: 0.5
G9: 103 | H9: Cierra Nelson | I9: Sun In Fun | K9: 15.726 | M9: 1D 6th | N9: 315.84
G10: 211 | H10: Taylor Ardoin | I10: LegsGoneWild | K10: 15.733 | M10: 1D 7th | N10: 225.6 | P10: # Entered
G11: 187 | H11: Schelli Creacy | I11: Nico | K11: 15.824 | M11: 1D 8th | N11: 180.48 | P11: =COUNTA(H4:H503) -> 340
D12: A | G12: 96 | H12: Stephanie Fryar | I12: Streakin Bye Ta Fame | K12: 15.836
G13: S66 | H13: Ashley Harvey | K13: 15.887 | P13: # Ran
A14: X | C14: X | D14: A | G14: 18 | H14: Kylee Scribner | I14: Firewater Cartel | K14: 15.917 | P14: =COUNTA(K4:K503) -> 340
G15: 174 | H15: Megan Swint | I15: Buttons | K15: 15.965
G16: 114 | H16: Kathy Fields | I16: Regarding Numbers | K16: 15.969 | P16: # Left
D17: A | G17: S70 | H17: Jamie Wilson | I17: Check Your Bet | K17: 15.983 | P17: =$P$11-$P$14 -> 0
C18: x | D18: A | G18: S124 | H18: Autumn Woodruff | I18: Raw Firepower | K18: 15.989
D19: A | G19: S15 | H19: Rayna Longeway | I19: JL Fourtafame | K19: 16.004
G20: S81 | H20: Jordan Walker | I20: Fire On Sunday | K20: 16.015
G21: 13 | H21: Nisa Berry | K21: 16.04
A22: X | G22: 62 | H22: Andrea Cline | I22: Ladys Pink Cash | K22: 16.051
G23: 192 | H23: Megan Swint | I23: GiGi | K23: 16.052
G24: S68 | H24: Kelsey Lutjen | I24: Winners Game Version | K24: 16.052
C25: X | D25: A | G25: 89 | H25: Denny Ralls | I25: SV Southern Comfort | K25: 16.062 | M25: 2D 1st | N25: 902.4
D26: S | G26: 165 | H26: Shelly Shields | I26: H2 | K26: 16.101 | M26: 2D 2nd | N26: 752
D27: A | G27: S85 | H27: Mindy Holloway | I27: SweetMovinFirewater | K27: 16.118 | M27: 2D 3rd | N27: 639.2
D28: A | G28: 129 | H28: Faith Furrow | I28: Fames Easy Jetolena | K28: 16.14 | M28: 2D 4th | N28: 488.8
D29: S | G29: 139 | H29: Jenny Zant | I29: Raise Me Ta Fame | K29: 16.143 | M29: 2D 5th | N29: 376
G30: S9 | H30: Maci Berry | I30: Shezamaximumbugleo | K30: 16.15 | M30: 2D 6th | N30: 263.2
D31: S | G31: 137 | H31: Lynn Saunders | I31: Bully Ta Fame | K31: 16.154 | M31: 2D 7th | N31: 188
G32: S87 | H32: Riley Fountain | I32: Royal Dame Ta Fame | K32: 16.158 | M32: 2D 8th | N32: 150.4
D33: A | G33: 49 | H33: Kelsy Cunningham | I33: Frenchmans Day Hay | K33: 16.173
D34: S | G34: 51 | H34: Amy Swan | I34: Boons Prescription | K34: 16.187
D35: A | G35: S54 | H35: Sara Withers | I35: Shoeless Joe Biancus | K35: 16.201
G36: 7 | H36: Kyra Boling | I36: Teninas Hayday | K36: 16.201
G37: 202 | H37: Ashley Alligood | I37: RB Bullys Indian Outlaw | K37: 16.214
G38: 97 | H38: Jo Fisher | I38: Fame | K38: 16.227
D39: S | G39: 109 | H39: Renae Stuckey | I39: Leo San Ta Fame | K39: 16.23
G40: S71 | H40: Cassidy Champlin | I40: Wood Bea French Girl | K40: 16.241
G41: S107 | H41: Corbin Pinyan | I41: Honor With Cash | K41: 16.241
D42: A | G42: 160 | H42: Stephanie Fryar | I42: LaJollas Roll | K42: 16.248
C43: X | D43: A | G43: 126 | H43: Stephanie Snuzuk | I43: Streakin | K43: 16.249
A44: X | D44: A | G44: S55 | H44: Mecca Hickox | I44: MV Gonna Be Famous | K44: 16.25
D45: S | G45: 63 | H45: Lisa Wernli | I45: Flashs Fine Effort | K45: 16.263
B46: X | D46: S | G46: S11 | H46: Martha Jordan | I46: MV Fury Of The Fame | K46: 16.268
G47: 21 | H47: Maggie Pytlik | I47: Karma | K47: 16.285
D48: S | G48: 102 | H48: Dawn Fryar | I48: Special Bid Of Frost | K48: 16.286
D49: S | G49: 29 | H49: Jolene Jones | I49: Peppys Streakof Fame | K49: 16.29
G50: S102 | H50: Cassidy Champlin | I50: DG Excuse My French | K50: 16.298
E51: X | F51: X | G51: 132 | H51: Breckyn Tippen | I51: Sugar Sage Watson | K51: 16.31
G52: 209 | H52: Megan Swint | I52: Superboy | K52: 16.325
D53: S | G53: 140 | H53: Debbie Richardson | I53: Call Me Misty May | K53: 16.328
D54: A | G54: 22 | H54: Molly Steffen | I54: Lil Snippy Girl | K54: 16.33
B55: X | G55: 56 | H55: Brandi Felder | I55: Graves Leavin Tuscon | K55: 16.334
G56: 36 | H56: Cierra Nelson | I56: Semi Automatic | K56: 16.335
G57: 128 | H57: Shelly Shields | I57: h1 | K57: 16.339
B58: X | G58: 214 | H58: Jamie Olsen | I58: Miss Famous Beduino | K58: 16.354
E59: X | F59: X | G59: S82 | H59: Hadley Durfey | I59: One Smooth Kelly | K59: 16.356
G60: S27 | H60: Nisa Berry | K60: 16.357
D61: A | G61: S13 | H61: Mecca Hickox | I61: Casino Perks | K61: 16.363
G62: 85 | H62: Davie King | I62: Alvin | K62: 16.371
G63: S65 | H63: Becky Dillard | I63: Wow Shes Hot | K63: 16.384
D64: S | G64: 43 | H64: Glenda Barnett | I64: Bogies Royale Opey | K64: 16.39
D65: S | G65: 136 | H65: Donna Tippen | I65: Check Me Out Guys | K65: 16.406
D66: A | G66: 30 | H66: Andrea Sewell | I66: Abbysolutly Blitzed | K66: 16.408
G67: S14 | H67: AnnaBelle Martin | I67: DTF Making My Way | K67: 16.409
G68: 112 | H68: Lacy Billingsley | I68: Dirty Dixco Diane 37 | K68: 16.425
G69: 222 | H69: Kristy Maxwell | I69: Roy | K69: 16.426
B70: X | D70: A | G70: S106 | H70: Boo Burttschell | I70: Gatsby | K70: 16.436
G71: S104 | H71: Sydnee Carter | I71: Frenchmans Royal | K71: 16.437
D72: S | G72: 173 | H72: Lynn Saunders | I72: Chumley | K72: 16.449
G73: S20 | H73: Faith Ross | I73: Brady | K73: 16.451
D74: A | G74: 190 | H74: Dani Buhler | I74: Flashy French Kirk | K74: 16.455
G75: S76 | H75: Connie Randolph | I75: Hot Rod Kitty Cat | K75: 16.462
G76: S89 | H76: Ginger Billingsley | I76: Joker | K76: 16.467
G77: S41 | H77: Riley Chown | I77: Heza Dash Ta Honor | K77: 16.473
D78: S | G78: 72 | H78: Debbie Rabb | I78: VF Coup Fulla COIns | K78: 16.476
A79: X | G79: 104 | H79: Billie Ann Harmon | I79: Me Flingin Diamonds | K79: 16.478
E80: X | F80: X | G80: 42 | H80: Brinley Howard | I80: Reds Western Flit | K80: 16.49
G81: S90 | H81: Kelsey Lutjen | I81: Dashin Quickly | K81: 16.496
A82: X | G82: 24 | H82: Dawn Link | I82: Domintnator | K82: 16.497
D83: A | G83: S26 | H83: Bianca Dos Santos | I83: One Famous Streaker | K83: 16.503
G84: 215 | H84: Lauren Merica | I84: Cardi | K84: 16.509
A85: X | G85: 20 | H85: Andrea Cline | I85: Ready Set Go Girl | K85: 16.511
D86: S | G86: S92 | H86: Kathy Rush | I86: MS flaming tres Seis | K86: 16.517
G87: S97 | H87: Stevie Scott | I87: Scarlets Wood N Fame | K87: 16.519
G88: 224 | H88: Emily Necaise | I88: Scarlett | K88: 16.532
G89: 8 | H89: Sydney Swatsell | I89: Smalls | K89: 16.538
G90: 135 | H90: Billie Ann Harmon | I90: Toxic Tango | K90: 16.546
E91: X | F91: X | G91: 121 | H91: Rylan Heller | I91: AR Simply Smart | K91: 16.553 | M91: 3D 1st/2nd | N91: 662
G92: S5 | H92: Mandi Cleveland | I92: Little Bit Of Load | K92: 16.553 | M92: 3D 1st/2nd | N92: 662
D93: A | G93: 127 | H93: Stephanie Fryar | I93: The Red Maserati | K93: 16.555 | M93: 3D 3rd | N93: 511.36
D94: A | G94: 71 | H94: Lindsey Stevens | I94: JM I Got Faith | K94: 16.557 | M94: 3D 4th/5th | N94: 346
G95: S34 | H95: Casey Hammons | I95: BH Trip Ta Fame | K95: 16.557 | M95: 3D 4th/5th | N95: 346
G96: 164 | H96: Cindy Stone | I96: Super Sonic Corona | K96: 16.561 | M96: 3D 6th | N96: 210.56
G97: 94 | H97: Michelle Tyler | K97: 16.58 | M97: 3D 7th | N97: 150.4
G98: S42 | H98: Brittany Pierson | I98: CF Dash N Dirty | K98: 16.586 | M98: 3D 8th | N98: 120.32
G99: 59 | H99: Barbara Lamance | I99: HMH Featuredstreaker | K99: 16.595
D100: A | G100: 73 | H100: Andrea Sewell | I100: Frenchmans Bellarose | K100: 16.599
G101: 162 | H101: Bailey Anderson | I101: DDDSailoncandy | K101: 16.601
G102: 81 | H102: Billie Ann Harmon | I102: Sheza Famous Bugs | K102: 16.602
A103: X | G103: 166 | H103: Jada Brooke Haken | I103: Namgis D 129 | K103: 16.625
D104: A | G104: 100 | H104: Noah Grimes | I104: Caliofornia Clone | K104: 16.626
D105: S | G105: 92 | H105: Johnell Ray | I105: Smooth Your Jets | K105: 16.637
A106: X | D106: A | G106: 16 | H106: Tristan Mounts | I106: Dashin Olena | K106: 16.642
D107: S | G107: 82 | H107: Tracie Schoenthal | I107: GunsNFIrewater | K107: 16.65
D108: A | G108: 213 | H108: Brooke Kelley | I108: Nu Bueno Karma | K108: 16.654
G109: 40 | H109: Sydney Swatsell | I109: Feature Me Firin | K109: 16.655
E110: X | F110: X | G110: 87 | H110: Baylee Burleson | I110: Festarlitestarbrite | K110: 16.658
G111: S33 | H111: Becky Dillard | I111: Shesa Hot Loop | K111: 16.666
G112: S43 | H112: Tassie Munroe | I112: ND Firewater Brandy | K112: 16.669
G113: 186 | H113: Nicki Zimmerman | I113: Streakin N Famous | K113: 16.681
G114: 55 | H114: Maggie Pytlik | I114: Rhett | K114: 16.682
D115: S | G115: S61 | H115: Melissa Silvers | I115: Laica Rollin Stone | K115: 16.7
G116: 130 | H116: Nikki Cain | I116: Smooth Finances | K116: 16.704
G117: 151 | H117: Gretchen Goedeken | I117: Fine Whatever | K117: 16.711
A118: X | D118: A | G118: 33 | H118: Stephanie Fryar | I118: Can I Get A Hallelujah | K118: 16.724
G119: S123 | H119: Delaney Siebert | I119: Streakin N Blazin | K119: 16.724
D120: A | G120: 108 | H120: Casey Keeton | I120: KN So Fabulous | K120: 16.728
G121: 206 | H121: Katie Weaver | I121: Brickhouse Lilly | K121: 16.735
G122: S60 | H122: Brittany Jones | I122: Cash Dealins | K122: 16.76
G123: S2 | H123: Presleigh Akers | I123: Short Nitalena | K123: 16.796
G124: 180 | H124: Bree Von Hellborn | I124: Lena An Shine | K124: 16.807
G125: S22 | H125: Lydia Butler | I125: CR Mizter Third Base | K125: 16.809
G126: 123 | H126: Holly Pritchard | K126: 16.821
G127: S18 | H127: Wyatt Paul | K127: 16.828
G128: 200 | H128: Fawn Aldrich | I128: Boots | K128: 16.831
G129: 41 | H129: Randi Roberts | I129: Boom Slicka Boom | K129: 16.833
G130: 106 | H130: Lori Marsh | I130: Frenchmans Lucy Lou | K130: 16.846
G131: 159 | H131: Nicki Zimmerman | I131: Prime Gold | K131: 16.846
G132: 17 | H132: Brandi Felder | I132: MP Haydays Chickadee | K132: 16.85
B133: X | G133: 83 | H133: Krista Lucas | I133: TBR Streak Of Perks | K133: 16.852
C134: X | G134: 19 | H134: Erika Ashley | I134: Mitzi Would | K134: 16.855
B135: X | D135: S | G135: S45 | H135: Kathy Rush | I135: JL Twiasted Roc | K135: 16.855
G136: 193 | H136: Teneille Angland | I136: KN Famous Ever After | K136: 16.863
G137: 91 | H137: Nikki Cain | I137: Shakem Baby Shakem | K137: 16.867
D138: S | G138: 34 | H138: Simone Elmore | I138: Badger A Conchadrift | K138: 16.869
G139: S47 | H139: Nicoletta Bean | I139: Famous China Doll | K139: 16.878
G140: 47 | H140: Billie Ann Harmon | I140: Guys Got Fuel | K140: 16.88
D141: A | G141: 124 | H141: Lindsey Stevens | I141: Wadafire | K141: 16.882
G142: 68 | H142: Missy Piper | I142: Cee Cee Uno | K142: 16.883
G143: 105 | H143: Brandi Felder | I143: A Sly Gal | K143: 16.889
G144: 204 | H144: Candie Wolf | I144: Taxi | K144: 16.891
G145: 12 | H145: Taylor Hice | I145: Mac | K145: 16.92
E146: X | F146: X | G146: 84 | H146: Rylan Heller | I146: Runnin Moonshine | K146: 16.921
G147: S19 | H147: Ashley Harvey | K147: 16.921
G148: 210 | H148: Makala Pierce | I148: Melmen | K148: 16.922
G149: S6 | H149: Mattie Hodges | I149: Dream Designer | K149: 16.929
D150: S | G150: 93 | H150: Debbie Richardson | I150: Jess Streakin Again | K150: 16.931
D151: A | G151: 31 | H151: Rogena Richard | I151: Colt | K151: 16.936
E152: X | F152: X | G152: 119 | H152: Abby Taylor | I152: Sixisbetter | K152: 16.937
G153: 120 | H153: Valerie Ford | I153: Shesa Corona Streak | K153: 16.94
A154: x | D154: A | G154: S95 | H154: Autumn Woodruff | I154: Spoonfulla Firewater | K154: 16.944
D155: S | G155: S24 | H155: Waynella Spurgeon | I155: CCC Wranglers Glory | K155: 16.985
E156: X | F156: X | G156: 149 | H156: Lucas Do Valle | K156: 17.006
G157: 61 | H157: Valerie Ford | I157: Hesa Streak Of Fame | K157: 17.012
A158: X | G158: S48 | H158: Mandi Cleveland | I158: Rare Corona Gone | K158: 17.014
G159: 53 | H159: Nikki Cain | I159: Compromised Perks | K159: 17.014
G160: S74 | H160: Fran Denham | I160: FrenchiesLightOnCAsh | K160: 17.014
G161: 156 | H161: Kandace Bussell | I161: Circlebar Rare Bugs | K161: 17.015
F162: X | G162: 117 | H162: Madeleine Moll | I162: Gear'Em Up Nic | K162: 17.021
G163: 225 | H163: Gretchen Goedeken | I163: Pretty Bay Pony | K163: 17.031
D164: A | G164: 76 | H164: Casey Keeton | I164: Smoothlikefirewater | K164: 17.034
D165: A | G165: S51 | H165: Candace Jammer | I165: Texas Heros Big Girle | K165: 17.039
G166: S86 | H166: Alex Stokes | I166: Fiery Hot Coco | K166: 17.064 | M166: 4D 1st | N166: 541.44
G167: 177 | H167: Emily Greer | I167: Dyna | K167: 17.07 | M167: 4D 2nd | N167: 451.2
D168: A | G168: 23 | H168: Jennifer Cullen | I168: Chasin Annies Fame | K168: 17.078 | M168: 4D 3rd | N168: 383.52
G169: 65 | H169: Pattie Mackie | I169: Flitter Fuel Lad | K169: 17.083 | M169: 4D 4th | N169: 293.28
G170: 70 | H170: Lacy Billingsley | I170: Bullchip | K170: 17.087 | M170: 4D 5th | N170: 225.6
G171: 86 | H171: Cathy Caskey | I171: Pass On Red | K171: 17.093 | M171: 4D 6th | N171: 157.92
G172: S79 | H172: Kelsey Lutjen | I172: Red Rhonda | K172: 17.098 | M172: 4D 7th | N172: 112.8
G173: 208 | H173: Gretchen Goedeken | I173: Spot | K173: 17.114 | M173: 4D 8th | N173: 90.24
D174: S | G174: 6 | H174: Lisa Corey | I174: Beda Dream | K174: 17.123
D175: S | G175: 69 | H175: Karen Coskrey | I175: TS Dream Drifter | K175: 17.123
D176: S | G176: 9 | H176: Renae Osborne | I176: Hurricane | K176: 17.125
D177: A | G177: 189 | H177: Jennifer Abbott | I177: Blazin Wagon | K177: 17.126
G178: 110 | H178: Jessica Mohr | I178: KN Chattin Bout Fame | K178: 17.126
G179: 155 | H179: Mandy Smith | I179: Twister | K179: 17.133
D180: S | G180: S63 | H180: Mary Sorrels | I180: Bubba Guy | K180: 17.137
G181: S50 | H181: Presleigh Akers | I181: Holy Heart O Texas | K181: 17.156
G182: 191 | H182: Deven Riggins | I182: Dude | K182: 17.158
G183: S72 | H183: Jade Crago | I183: CM Nitros Cruiser | K183: 17.169
E184: X | F184: X | G184: S12 | H184: Jaidyn Ornelas | I184: Awards First | K184: 17.172
D185: A | G185: S53 | H185: Reagan Jackson | I185: Red Hot Temptress | K185: 17.204
G186: 57 | H186: Lori Marsh | I186: Cash For The Jewels | K186: 17.22
G187: 183 | H187: Karen Richardson | I187: Tresarainbows | K187: 17.228
G188: 15 | H188: Erin Giusti | I188: Tiger Are Star | K188: 17.235
A189: X | G189: S80 | H189: Tassie Munroe | I189: Ms Bebe Gun | K189: 17.244
D190: S | G190: 138 | H190: Kathy Cribbs | I190: Playboys Arrow | K190: 17.251
G191: 199 | H191: Kristie Mason | I191: Red Hot Storm | K191: 17.272
G192: 153 | H192: Michaela Robertson | K192: 17.275
D193: S | G193: 58 | H193: Tracy Henderson | I193: Heza Stray Cat | K193: 17.289
G194: S125 | H194: Aerial Eggers | I194: Mucho Fast Dave | K194: 17.29
G195: S8 | H195: Cassidy Thomas | I195: Wright For Gold | K195: 17.293
G196: 46 | H196: Hollie Sirman | I196: Easter Bunny Special | K196: 17.297
G197: S35 | H197: Jade Crago | I197: Nitros Next TopModel | K197: 17.329
G198: 216 | H198: Emily Necaise | I198: Baby J | K198: 17.34
D199: A | G199: 146 | H199: Autumn Gallagher | I199: Shez Jettn Speed | K199: 17.37
G200: 196 | H200: Tyler Fitzpatrick | I200: Ivy | K200: 17.375
G201: S126 | H201: Lauren Webster | I201: Peptos Bay Roan Echo | K201: 17.381
... 302 more rows

Sheet Senior
A1: Futurity | B1: Der | D1: BBR | E1: Draw | F1: Rider Name | G1: Horse Name | H1: Time | I1: Placing | J1: Money Earned
C2: Senior | E2: 1 | F2: Martha Smith | G2: Firewatermakemehappy | H2: 15.662 | I2: 1D 1st | J2: 161
E3: 2 | F3: Shelly Shields | G3: H2 | H3: 16.101 | I3: 1D 2nd | J3: 97
E4: 3 | F4: Jenny Zant | G4: Raise Me Ta Fame | H4: 16.143 | I4: 1D 3rd | J4: 64
E5: 4 | F5: Lynn Saunders | G5: Popcorn | H5: 16.154
E6: 5 | F6: Amy Swan | G6: Boons Prescription | H6: 16.187 | I6: 2D 1st | J6: 138
E7: 6 | F7: Renae Stuckey | G7: Leo San Ta Fame | H7: 16.23 | I7: 2D 2nd | J7: 83
E8: 7 | F8: Lisa Wernli | G8: Flashs Fine Effort | H8: 16.263 | I8: 2D 3rd | J8: 55
E9: 8 | F9: Martha Jordan | G9: MV Fury Of The Fame | H9: 16.268
E10: 9 | F10: Dawn Fryar | G10: Special Bid Of Frost | H10: 16.286
E11: 10 | F11: Jolene Jones | G11: Peppys Streakof Fame | H11: 16.29
E12: 11 | F12: Debbie Richardson | G12: Call Me Misty May | H12: 16.328
E13: 12 | F13: Glenda Barnett | G13: Bogies Royale Opey | H13: 16.39
E14: 13 | F14: Donna Tippen | G14: Check Me Out Guys | H14: 16.406
E15: 14 | F15: Lynn Saunders | G15: Chumley | H15: 16.449
E16: 15 | F16: Debbie Rabb | G16: VF Coup Fulla COIns | H16: 16.476
E17: 16 | F17: Kathy Rush | G17: MS flaming tres Seis | H17: 16.517
E18: 17 | F18: Johnell Ray | G18: Smooth Your Jets | H18: 16.637
E19: 18 | F19: Tracie Schoenthal | G19: GunsNFIrewater | H19: 16.65
E20: 19 | F20: Melissa Silvers | G20: Laica Rollin Stone | H20: 16.7 | I20: 3D 1st | J20: 92
E21: 20 | F21: Kathy Rush | G21: JL Twiasted Roc | H21: 16.855 | I21: 3D 2nd | J21: 55
E22: 21 | F22: Simone Elmore | G22: Badger A Conchadrift | H22: 16.869 | I22: 3D 3rd | J22: 37
E23: 22 | F23: Debbie Richardson | G23: Jess Streakin Again | H23: 16.931
E24: 23 | F24: Waynella Spurgeon | G24: CCC Wranglers Glory | H24: 16.985
E25: 24 | F25: Lisa Corey | G25: Beda Dream | H25: 17.123
E26: 25 | F26: Karen Coskrey | G26: TS Dream Drifter | H26: 17.123
E27: 26 | F27: Renae Osborne | G27: Hurricane | H27: 17.125
E28: 27 | F28: Mary Sorrels | G28: Bubba Guy | H28: 17.137
E29: 28 | F29: Karen Richardson | G29: Tresrainbows | H29: 17.228 | I29: 4D 1st | J29: 69
E30: 29 | F30: Kathy Cribbs | G30: Playboys Arrow | H30: 17.251 | I30: 4D 2nd | J30: 41
E31: 30 | F31: Tracy Henderson | G31: Heza Stray Cat | H31: 17.289 | I31: 4D 3rd | J31: 28
E32: 31 | F32: Martha Smith | G32: Victory Blue Moon | H32: 17.474
E33: 32 | F33: Ken English | H33: 17.484
E34: 33 | F34: Terry Latta | G34: Chess | H34: 17.573
E35: 34 | F35: LeAnn Wills | G35: Shoot Yeah She's Sassy | H35: 17.606
E36: 35 | F36: Debra Cooper | G36: Huggin A Native Pepto | H36: 17.882
E37: 36 | F37: Simone Elmore | G37: Mitey Moon Dash | H37: 17.885
E38: 37 | F38: Tracy Henderson | G38: Chilli Cat | H38: 17.958
E39: 38 | F39: Sherrel Burgess | G39: Boomer T Fellers | H39: 18.194
E40: 39 | F40: Lisa Wernli | G40: Babe On The Run | H40: 18.306
E41: 40 | F41: Kim Eisen | G41: Velvets Aspecial Gal | H41: 18.661
E42: 41 | F42: Lindsay Perry | G42: Renos Bo | H42: broken
E43: 42 | F43: Kelly Bruner | G43: Tufferenell | H43: nt16.009
E44: 43 | F44: Debbie Richardson | G44: VF Goin Big Time | H44: nt16.214
E45: 44 | F45: Martha Jordan | G45: Fuel For Dash | H45: nt16.375
E46: 45 | F46: Jill Petty | G46: Fast Dashin Chick | H46: nt17.319
E47: 46 | F47: Julie Wright | G47: A Royal Tee Too | H47: nt19.122
E48: 47 | F48: Ken English | H48: nt21.523
E49: 48
E50: 48
E51: 49
E52: 50
E53: 51
E54: 52
E55: 53
E56: 54
E57: 55
E58: 56
E59: 57
E60: 58
E61: 59
E62: 60
E63: 61
E64: 62
E65: 63
E66: 64
E67: 65
E68: 66
E69: 67
E70: 68
E71: 69
E72: 70
E73: 71
E74: 72
E75: 73
E76: 74
E77: 75
E78: 76
E79: 77
E80: 78
E81: 79
E82: 80
E83: 81
E84: 82
E85: 83
E86: 84
E87: 85
E88: 86
E89: 87
E90: 88
E91: 89
E92: 90
E93: 91
E94: 92
E95: 93
E96: 94
E97: 95
E98: 96
E99: 97
E100: 98
E101: 99
E102: 100
E103: 101
E104: 102
E105: 103
E106: 104
E107: 105
E108: 106
E109: 107
E110: 108
E111: 109
E112: 110
E113: 111
E114: 112
E115: 113
E116: 114
E117: 115
E118: 116
E119: 117
E120: 118
E121: 119
E122: 120
E123: 121
E124: 122
E125: 123
E126: 124
E127: 125
E128: 126
E129: 127
E130: 128
E131: 129
E132: 130
E133: 131
E134: 132
E135: 133
E136: 134
E137: 135
E138: 136
E139: 137
E140: 138
E141: 139
E142: 140
E143: 141
E144: 142
E145: 143
E146: 144
E147: 145
E148: 146
E149: 147
E150: 148
E151: 149
E152: 150
E153: 151
E154: 152
E155: 153
E156: 154
E157: 155
E158: 156
E159: 157
E160: 158
E161: 159
E162: 160
E163: 161
E164: 162
E165: 163
E166: 164
E167: 165
E168: 166
E169: 167
E170: 168
E171: 169
E172: 170
E173: 171
E174: 172
E175: 173
E176: 174
E177: 175
E178: 176
E179: 177
E180: 178
E181: 179
E182: 180
E183: 181
E184: 182
E185: 183
E186: 184
E187: 185
E188: 186
E189: 187
E190: 188
E191: 189
E192: 190
E193: 191
E194: 192
E195: 193
E196: 194
E197: 195
E198: 196
E199: 197
E200: 198
... 102 more rows

Sheet Adult
A1: Futurity | B1: Der | D1: BBR | E1: Draw | F1: Rider Name | G1: Horse Name | H1: Time | I1: Placing | J1: Money Earned
C2: Adult | E2: 1 | F2: Jamie Wilson | G2: A Streak Of Phame | H2: 15.661 | I2: 1D 1st | J2: 189
E3: 2 | F3: Stephanie Fryar | G3: Streakin Bye Ta Fame | H3: 15.836 | I3: 1D 2nd | J3: 113
E4: 3 | F4: Kylee Scribner | G4: Firewater Cartel | H4: 15.917 | I4: 1D 3rd | J4: 76
E5: 4 | F5: Jamie Wilson | G5: Check Your Bet | H5: 15.983
E6: 5 | F6: Autumn Woodruff | G6: Raw Firepower | H6: 15.989
E7: 6 | F7: Rayna Longeway | G7: JL Fourtafame | H7: 16.004
E8: 7 | F8: Denny Ralls | G8: SV Southern Comfort | H8: 16.062
E9: 8 | F9: Mindy Holloway | G9: SweetMovinFirewater | H9: 16.118
E10: 9 | F10: Faith Furrow | G10: Fames Easy Jetolena | H10: 16.14
E11: 10 | F11: Kelsy Cunningham | G11: Frenchmans Day Hay | H11: 16.173 | I11: 2D 1st | J11: 162
E12: 11 | F12: Sara Withers | G12: Shoeless Joe Biancus | H12: 16.201 | I12: 2D 2nd | J12: 97
E13: 12 | F13: Stephanie Fryar | G13: LaJollas Roll | H13: 16.248 | I13: 2D 3rd | J13: 65
E14: 13 | F14: Stephanie Snuzuk | G14: Streakin | H14: 16.249
E15: 14 | F15: Mecca Hickox | G15: MV Gonna Be Famous | H15: 16.25
E16: 15 | F16: Molly Steffen | G16: Lil Snippy Girl | H16: 16.33
E17: 16 | F17: Mecca Hickox | G17: Casino Perks | H17: 16.363
E18: 17 | F18: Andrea Sewell | G18: Abbysolutly Blitzed | H18: 16.408
E19: 18 | F19: Boo Burttschell | G19: Gatsby | H19: 16.436
E20: 19 | F20: Dani Buhler | G20: Flashy French Kirk | H20: 16.455
E21: 20 | F21: Bianca Dos Santos | G21: One Famous Streaker | H21: 16.503
E22: 21 | F22: Stephanie Fryar | G22: The Red Maserati | H22: 16.555
E23: 22 | F23: Lindsey Stevens | G23: JM I Got Faith | H23: 16.557
E24: 23 | F24: Andrea Sewell | G24: Frenchmans Bellarose | H24: 16.599
E25: 24 | F25: Noah Grimes | G25: Caliofornia Clone | H25: 16.626
E26: 25 | F26: Tristan Mounts | G26: Dashin Olena | H26: 16.642
E27: 26 | F27: Brooke Kelley | G27: Nu Bueno Karma | H27: 16.654
E28: 27 | F28: Stephanie Fryar | G28: Can I Get A Hallelujah | H28: 16.724 | I28: 3D 1st | J28: 108
E29: 28 | F29: Casey Keeton | G29: KN So Fabulous | H29: 16.728 | I29: 3D 2nd | J29: 65
E30: 29 | F30: Lindsey Stevens | G30: Wadafire | H30: 16.882 | I30: 3D 3rd | J30: 43
E31: 30 | F31: Rogena Richard | G31: Colt | H31: 16.936
E32: 31 | F32: Autumn Woodruff | G32: Spoonfulla Firewater | H32: 16.944
E33: 32 | F33: Casey Keeton | G33: Smoothlikefirewater | H33: 17.034
E34: 33 | F34: Candace Jammer | G34: Texas Heros Big Girle | H34: 17.039
E35: 34 | F35: Jennifer Cullen | G35: Chasin Annies Fame | H35: 17.078
E36: 35 | F36: Jennifer Abbott | G36: Blazin Wagon | H36: 17.126
E37: 36 | F37: Reagan Jackson | G37: Red Hot Temptress | H37: 17.204 | I37: 4D 1st | J37: 81
E38: 37 | F38: Autumn Gallagher | G38: Shez Jettn Speed | H38: 17.37 | I38: 4D 2nd | J38: 49
E39: 38 | F39: Casey Keeton | G39: BQH Jetson | H39: 17.415 | I39: 4D 3rd | J39: 32
E40: 39 | F40: Casey Keeton | G40: Bar B Streak Ta Flit | H40: 17.486
E41: 40 | F41: Timberly Erickson | G41: Mines Fast | H41: 18.052
E42: 41 | F42: Tiffany Durham | G42: Colonels Kerosene | H42: 18.183
E43: 42 | F43: Rayna Longeway | G43: MV Famous Margarita | H43: 18.774
E44: 43 | F44: Jesse Budd | G44: Flicker Nic | H44: 19.279
E45: 44 | F45: Cassidy Rabb | G45: VF Temptations | H45: nt16.433
E46: 45 | F46: Tillar Murray | G46: JL Lava Roc | H46: nt16.517
E47: 46 | F47: Lindsay Hoffman | G47: First Down Deception | H47: nt16.614
E48: 47 | F48: Stephanie Fryar | G48: Some Streakin French | H48: nt16.663
E49: 48 | F49: Jennifer Abbott | G49: Wendell Jackson | H49: nt16.695
E50: 49 | F50: Faith Furrow | G50: Dash Of Killian | H50: nt16.752
E51: 50 | F51: Crystal Allred | G51: Lovemas Ghost | H51: nt17.479
E52: 51 | F52: Natalie Bland | G52: Epic Nick | H52: nt17.604
E53: 52 | F53: Crystal Allred | G53: No Berry Just A Jewel | H53: nt17.742
E54: 53 | F54: Tiffany Durham | G54: Dashin Luke Perry | H54: nt17.792
E55: 54 | F55: Tiffany Durham | G55: Dual Reys Win Money | H55: nt18.170
E56: 55
E57: 56
E58: 57
E59: 58
E60: 59
E61: 60
E62: 61
E63: 62
E64: 63
E65: 64
E66: 65
E67: 66
E68: 67
E69: 68
E70: 69
E71: 70
E72: 71
E73: 72
E74: 73
E75: 74
E76: 75
E77: 76
E78: 77
E79: 78
E80: 79
E81: 80
E82: 81
E83: 82
E84: 83
E85: 84
E86: 85
E87: 86
E88: 87
E89: 88
E90: 89
E91: 90
E92: 91
E93: 92
E94: 93
E95: 94
E96: 95
E97: 96
E98: 97
E99: 98
E100: 99
E101: 100
E102: 101
E103: 102
E104: 103
E105: 104
E106: 105
E107: 106
E108: 107
E109: 108
E110: 109
E111: 110
E112: 111
E113: 112
E114: 113
E115: 114
E116: 115
E117: 116
E118: 117
E119: 118
E120: 119
E121: 120
E122: 121
E123: 122
E124: 123
E125: 124
E126: 125
E127: 126
E128: 127
E129: 128
E130: 129
E131: 130
E132: 131
E133: 132
E134: 133
E135: 134
E136: 135
E137: 136
E138: 137
E139: 138
E140: 139
E141: 140
E142: 141
E143: 142
E144: 143
E145: 144
E146: 145
E147: 146
E148: 147
E149: 148
E150: 149
E151: 150
E152: 151
E153: 152
E154: 153
E155: 154
E156: 155
E157: 156
E158: 157
E159: 158
E160: 159
E161: 160
E162: 161
E163: 162
E164: 163
E165: 164
E166: 165
E167: 166
E168: 167
E169: 168
E170: 169
E171: 170
E172: 171
E173: 172
E174: 173
E175: 174
E176: 175
E177: 176
E178: 177
E179: 178
E180: 179
E181: 180
E182: 181
E183: 182
E184: 183
E185: 184
E186: 185
E187: 186
E188: 187
E189: 188
E190: 189
E191: 190
E192: 191
E193: 192
E194: 193
E195: 194
E196: 195
E197: 196
E198: 197
E199: 198
E200: 199
... 101 more rows

Sheet Youth
A1: Futurity | B1: Der | D1: BBR | E1: Draw | F1: Rider Name | G1: Horse Name | H1: Time | I1: Placing | J1: Money Earned
C2: Youth | E2: 1 | F2: Breckyn Tippen | G2: Sugar Sage Watson | H2: 16.31 | I2: 1D 1st | J2: 118
E3: 2 | F3: Hadley Durfey | G3: One Smooth Kelly | H3: 16.356 | I3: 1D 2nd | J3: 78
E4: 3 | F4: Brinley Howard | G4: Reds Western Flit | H4: 16.49
E5: 4 | F5: Rylan Heller | G5: AR Simply Smart | H5: 16.553
E6: 5 | F6: Baylee Burleson | G6: Festarlitestarbrite | H6: 16.658
E7: 6 | F7: Rylan Heller | G7: Runnin Moonshine | H7: 16.921 | I7: 2D 1st | J7: 101
E8: 7 | F8: Abby Taylor | G8: Sixisbetter | H8: 16.937 | I8: 2D 2nd | J8: 67
E9: 8 | F9: Lucas Do Valle | H9: 17.006
E10: 9 | F10: Madeleine Moll | G10: Gear'Em Up Nic | H10: 17.021
E11: 10 | F11: Jaidyn Ornelas | G11: Awards First | H11: 17.172
E12: 11 | F12: Laurel Allred | G12: Quicks Blue Peppy | H12: 17.384 | I12: 3D 1st | J12: 67
E13: 12 | F13: Grace Ornelas | G13: Bubba | H13: 17.463 | I13: 3D 2nd | J13: 45
E14: 13 | F14: Shawnee Hawk | G14: Bay | H14: 17.699
E15: 14 | F15: Courtney McKay | G15: Georgia | H15: 17.975 | I15: 4D 1st | J15: 50
E16: 15 | F16: Trinity Joiner | G16: Highonbrownwhisky | H16: 18.332 | I16: 4D 2nd | J16: 34
E17: 16 | F17: Brinley Howard | G17: Whoneedsfameimfrench | H17: 18.655
E18: 17 | F18: Kilyn Osburn | G18: Mdnite Corona Boogie | H18: 19.266
E19: 18 | F19: Madeleine Moll | G19: Vibrant Stylish Chic | H19: broken
E20: 19 | F20: Emily Ann Williams | G20: Ruby | H20: nt16.157
E21: 20 | F21: Gabby Ruffini | G21: Famous Geronimo | H21: nt17.698
E22: 21
E23: 22
E24: 23
E25: 24
E26: 25
E27: 26
E28: 27
E29: 28
E30: 29
E31: 30
E32: 31
E33: 32
E34: 33
E35: 34
E36: 35
E37: 36
E38: 37
E39: 38
E40: 39
E41: 40
E42: 41
E43: 42
E44: 43
E45: 44
E46: 45
E47: 46
E48: 47
E49: 48
E50: 49
E51: 50
E52: 51
E53: 52
E54: 53
E55: 54
E56: 55
E57: 56
E58: 57
E59: 58
E60: 59
E61: 60
E62: 61
E63: 62
E64: 63
E65: 64
E66: 65
E67: 66
E68: 67
E69: 68
E70: 69
E71: 70
E72: 71
E73: 72
E74: 73
E75: 74
E76: 75
E77: 76
E78: 77
E79: 78
E80: 79
E81: 80
E82: 81
E83: 82
E84: 83
E85: 84
E86: 85
E87: 86
E88: 87
E89: 88
E90: 89
E91: 90
E92: 91
E93: 92
E94: 93
E95: 94
E96: 95
E97: 96
E98: 97
E99: 98
E100: 99
E101: 100
E102: 101
E103: 102
E104: 103
E105: 104
E106: 105
E107: 106
E108: 107
E109: 108
E110: 109
E111: 110
E112: 111
E113: 112
E114: 113
E115: 114
E116: 115
E117: 116
E118: 117
E119: 118
E120: 119
E121: 120
E122: 121
E123: 122
E124: 123
E125: 124
E126: 125
E127: 126
E128: 127
E129: 128
E130: 129
E131: 130
E132: 131
E133: 132
E134: 133
E135: 134
E136: 135
E137: 136
E138: 137
E139: 138
E140: 139
E141: 140
E142: 141
E143: 142
E144: 143
E145: 144
E146: 145
E147: 146
E148: 147
E149: 148
E150: 149
E151: 150
E152: 151
E153: 152
E154: 153
E155: 154
E156: 155
E157: 156
E158: 157
E159: 158
E160: 159
E161: 160
E162: 161
E163: 162
E164: 163
E165: 164
E166: 165
E167: 166
E168: 167
E169: 168
E170: 169
E171: 170
E172: 171
E173: 172
E174: 173
E175: 174
E176: 175
E177: 176
E178: 177
E179: 178
E180: 179
E181: 180
E182: 181
E183: 182
E184: 183
E185: 184
E186: 185
E187: 186
E188: 187
E189: 188
E190: 189
E191: 190
E192: 191
E193: 192
E194: 193
E195: 194
E196: 195
E197: 196
E198: 197
E199: 198
E200: 199
... 101 more rows

Sheet Derby
A1: Futurity | C1: Age Inct. | D1: BBR | E1: Draw | F1: Rider Name | G1: Horse Name | H1: Time | I1: Placing | J1: Money Earned
B2: Derby | E2: 1 | F2: Andrea Cline | G2: Blurry Bug Leo | H2: 15.553 | I2: 1st | J2: 216
E3: 2 | F3: Martha Jordan | G3: MV Fury Of The Fame | H3: 16.268 | I3: 2nd | J3: 144
E4: 3 | F4: Brandi Felder | G4: Graves Leavin Tuscon | H4: 16.334
E5: 4 | F5: Jamie Olsen | G5: Miss Famous Beduino | H5: 16.354
E6: 5 | F6: Boo Burttschell | G6: Gatsby | H6: 16.436
E7: 6 | F7: Krista Lucas | G7: TBR Streak Of Perks | H7: 16.852
E8: 7 | F8: Kathy Rush | G8: JL Twiasted Roc | H8: 16.855
E9: 8 | F9: Tillar Murray | G9: JL Lava Roc | H9: nt16.517
E10: 9 | F10: Tristan Parrish | G10: Happy N Famous | H10: nt16.658
E11: 10
E12: 11
E13: 13
E14: 14
E15: 15
E16: 16
E17: 17
E18: 18
E19: 19
E20: 20
E21: 21
E22: 22
E23: 23
E24: 24
E25: 25
E26: 26
E27: 27
E28: 28
E29: 29
E30: 30
E31: 31
E32: 32
E33: 33
E34: 34
E35: 35
E36: 36
E37: 37
E38: 38
E39: 39
E40: 40
E41: 41
E42: 42
E43: 43
E44: 44
E45: 45
E46: 46
E47: 47
E48: 48
E49: 49
E50: 50
E51: 51
E52: 52
E53: 53
E54: 54
E55: 55
E56: 56
E57: 57
E58: 58
E59: 59
E60: 60
E61: 61
E62: 62
E63: 63
E64: 64
E65: 65
E66: 66
E67: 67
E68: 68
E69: 69
E70: 70
E71: 71
E72: 72
E73: 73
E74: 74
E75: 75
E76: 76
E77: 77
E78: 78
E79: 79
E80: 80
E81: 81
E82: 82
E83: 83
E84: 84
E85: 85
E86: 86
E87: 87
E88: 88
E89: 89
E90: 90
E91: 91
E92: 92
E93: 93
E94: 94
E95: 95
E96: 96
E97: 97
E98: 98
E99: 99
E100: 100
E101: 101
E102: 102
E103: 103
E104: 104
E105: 105
E106: 106
E107: 107
E108: 108
E109: 109
E110: 110
E111: 111
E112: 112
E113: 113
E114: 114
E115: 115
E116: 116
E117: 117
E118: 118
E119: 119
E120: 120
E121: 121
E122: 122
E123: 123
E124: 124
E125: 125
E126: 126
E127: 127
E128: 128
E129: 129
E130: 130
E131: 131
E132: 132
E133: 133
E134: 134
E135: 135
E136: 136
E137: 137
E138: 138
E139: 139
E140: 140
E141: 141
E142: 142
E143: 143
E144: 144
E145: 145
E146: 146
E147: 147
E148: 148
E149: 149
E150: 150
E151: 151
E152: 152
E153: 153
E154: 154
E155: 155
E156: 156
E157: 157
E158: 158
E159: 159
E160: 160
E161: 161
E162: 162
E163: 163
E164: 164
E165: 165
E166: 166
E167: 167
E168: 168
E169: 169
E170: 170
E171: 171
E172: 172
E173: 173
E174: 174
E175: 175
E176: 176
E177: 177
E178: 178
E179: 179
E180: 180
E181: 181
E182: 182
E183: 183
E184: 184
E185: 185
E186: 186
E187: 187
E188: 188
E189: 189
E190: 190
E191: 191
E192: 192
E193: 193
E194: 194
E195: 195
E196: 196
E197: 197
E198: 198
E199: 199
E200: 200
... 100 more rows

Sheet Highstakes
B1: Der | C1: Age Inct. | D1: BBR | E1: Draw | F1: Rider Name | G1: Horse Name | H1: Time | I1: Placing | J1: Money Earned
A2: HS | E2: 1 | F2: Kylee Scribner | G2: Firewater Cartel | H2: 15.917 | I2: 1st | J2: 336
E3: 2 | F3: Autumn Woodruff | G3: Raw Firepower | H3: 15.989 | I3: 2nd | J3: 224
E4: 3 | F4: Denny Ralls | G4: SV Southern Comfort | H4: 16.062
E5: 4 | F5: Stephanie Snuzuk | G5: Streakin | H5: 16.249
E6: 5 | F6: Erika Ashley | G6: Mitzi Would | H6: 16.855
E7: 6 | F7: Kelsey Lutjen | G7: Takin On A Storm | H7: nt16.170
E8: 7 | F8: Cassidy Rabb | G8: VF Temptations | H8: nt16.433
E9: 8
E10: 9
E11: 10
E12: 11
E13: 12
E14: 13
E15: 14
E16: 15
E17: 16
E18: 17
E19: 18
E20: 19
E21: 20
E22: 21
E23: 22
E24: 23
E25: 24
E26: 25
E27: 26
E28: 27
E29: 28
E30: 29
E31: 30
E32: 31
E33: 32
E34: 33
E35: 34
E36: 35
E37: 36
E38: 37
E39: 38
E40: 39
E41: 40
E42: 41
E43: 42
E44: 43
E45: 44
E46: 45
E47: 46
E48: 47
E49: 48
E50: 49
E51: 50
E52: 51
E53: 52
E54: 53
E55: 54
E56: 55
E57: 56
E58: 57
E59: 58
E60: 59
E61: 60
E62: 61
E63: 62
E64: 63
E65: 64
E66: 65
E67: 66
E68: 67
E69: 68
E70: 69
E71: 70
E72: 71
E73: 72
E74: 73
E75: 74
E76: 75
E77: 76
E78: 77
E79: 78
E80: 79
E81: 80
E82: 81
E83: 82
E84: 83
E85: 84
E86: 85
E87: 86
E88: 87
E89: 88
E90: 89
E91: 90
E92: 91
E93: 92
E94: 93
E95: 94
E96: 95
E97: 96
E98: 97
E99: 98
E100: 99
E101: 100
E102: 101
E103: 102
E104: 103
E105: 104
E106: 105
E107: 106
E108: 107
E109: 108
E110: 109
E111: 110
E112: 111
E113: 112
E114: 113
E115: 114
E116: 115
E117: 116
E118: 117
E119: 118
E120: 119
E121: 120
E122: 121
E123: 122
E124: 123
E125: 124
E126: 125
E127: 126
E128: 127
E129: 128
E130: 129
E131: 130
E132: 131
E133: 132
E134: 133
E135: 134
E136: 135
E137: 136
E138: 137
E139: 138
E140: 139
E141: 140
E142: 141
E143: 142
E144: 143
E145: 144
E146: 145
E147: 146
E148: 147
E149: 148
E150: 149
E151: 150
E152: 151
E153: 152
E154: 153
E155: 154
E156: 155
E157: 156
E158: 157
E159: 158
E160: 159
E161: 160
E162: 161
E163: 162
E164: 163
E165: 164
E166: 165
E167: 166
E168: 167
E169: 168
E170: 169
E171: 170
E172: 171
E173: 172
E174: 173
E175: 174
E176: 175
E177: 176
E178: 177
E179: 178
E180: 179
E181: 180
E182: 181
E183: 182
E184: 183
E185: 184
E186: 185
E187: 186
E188: 187
E189: 188
E190: 189
E191: 190
E192: 191
E193: 192
E194: 193
E195: 194
E196: 195
E197: 196
E198: 197
E199: 198
E200: 199
... 101 more rows

Sheet Futurity
B1: Der | C1: Age Inct. | D1: BBR | E1: Draw | F1: Rider Name | G1: Horse Name | H1: Time | I1: Placing | J1: Money Earned
A2: Futurity | E2: 1 | F2: Kylee Scribner | G2: Firewater Cartel | H2: 15.917 | I2: 1D 1st | J2: 259
E3: 2 | F3: Andrea Cline | G3: Ladys Pink Cash | H3: 16.051 | I3: 1D 2nd | J3: 173
E4: 3 | F4: Mecca Hickox | G4: MV Gonna Be Famous | H4: 16.25
E5: 4 | F5: Billie Ann Harmon | G5: Me Flingin Diamonds | H5: 16.478 | I5: 2D 1st | J5: 173
E6: 5 | F6: Dawn Link | G6: Domintnator | H6: 16.497 | I6: 2D 2nd | J6: 115
E7: 6 | F7: Andrea Cline | G7: Ready Set Go Girl | H7: 16.511
E8: 7 | F8: Jada Brooke Haken | G8: Namgis D 129 | H8: 16.625
E9: 8 | F9: Tristan Mounts | G9: Dashin Olena | H9: 16.642
E10: 9 | F10: Stephanie Fryar | G10: Can I Get A Hallelujah | H10: 16.724
E11: 10 | F11: Autumn Woodruff | G11: Spoonfulla Firewater | H11: 16.944
E12: 11 | F12: Mandi Cleveland | G12: Rare Corona Gone | H12: 17.014
E13: 12 | F13: Tassie Munroe | G13: Ms Bebe Gun | H13: 17.244
E14: 13 | F14: Cierra Nelson | G14: One To Wish For | H14: 17.48
E15: 14 | F15: LeAnn Wills | G15: Shoot Yeah She's Sassy | H15: 17.606
E16: 15 | F16: Kelly Allen | G16: Miss JB 165 | H16: nt16.443
E17: 16 | F17: Jade Crago | G17: High Road Ta Fame | H17: nt16.829
E18: 17 | F18: Lauren Green | G18: Zero Dark Thirty | H18: nt17.162
E19: 18 | F19: Lisa Thornton | G19: LT The Lucky One | H19: nt17.217
E20: 19
E21: 20
E22: 21
E23: 22
E24: 23
E25: 24
E26: 25
E27: 25
E28: 26
E29: 27
E30: 28
E31: 29
E32: 30
E33: 31
E34: 32
E35: 33
E36: 34
E37: 35
E38: 36
E39: 37
E40: 38
E41: 39
E42: 40
E43: 41
E44: 42
E45: 43
E46: 44
E47: 45
E48: 46
E49: 47
E50: 48
E51: 49
E52: 50
E53: 51
E54: 52
E55: 53
E56: 54
E57: 55
E58: 56
E59: 57
E60: 58
E61: 59
E62: 60
E63: 61
E64: 62
E65: 63
E66: 64
E67: 65
E68: 66
E69: 67
E70: 68
E71: 69
E72: 70
E73: 71
E74: 72
E75: 73
E76: 74
E77: 75
E78: 76
E79: 77
E80: 78
E81: 79
E82: 80
E83: 81
E84: 82
E85: 83
E86: 84
E87: 85
E88: 86
E89: 87
E90: 88
E91: 89
E92: 90
E93: 91
E94: 92
E95: 93
E96: 94
E97: 95
E98: 96
E99: 97
E100: 98
E101: 99
E102: 100
E103: 101
E104: 102
E105: 103
E106: 104
E107: 105
E108: 106
E109: 107
E110: 108
E111: 109
E112: 110
E113: 111
E114: 112
E115: 113
E116: 114
E117: 115
E118: 116
E119: 117
E120: 118
E121: 119
E122: 120
E123: 121
E124: 122
E125: 123
E126: 124
E127: 125
E128: 126
E129: 127
E130: 128
E131: 129
E132: 130
E133: 131
E134: 132
E135: 133
E136: 134
E137: 135
E138: 136
E139: 137
E140: 138
E141: 139
E142: 140
E143: 141
E144: 142
E145: 143
E146: 144
E147: 145
E148: 146
E149: 147
E150: 148
E151: 149
E152: 150
E153: 151
E154: 152
E155: 153
E156: 154
E157: 155
E158: 156
E159: 157
E160: 158
E161: 159
E162: 160
E163: 161
E164: 162
E165: 163
E166: 164
E167: 165
E168: 166
E169: 167
E170: 168
E171: 169
E172: 170
E173: 171
E174: 172
E175: 173
E176: 174
E177: 175
E178: 176
E179: 177
E180: 178
E181: 179
E182: 180
E183: 181
E184: 182
E185: 183
E186: 184
E187: 185
E188: 186
E189: 187
E190: 188
E191: 189
E192: 190
E193: 191
E194: 192
E195: 193
E196: 194
E197: 195
E198: 196
E199: 197
E200: 198
... 102 more rows

Sheet 12 & Under (hidden)
A1: Futurity | B1: Der | C1: Age Inct. | D1: R/O | E1: Draw | F1: Rider Name | G1: Horse Name | H1: Time | I1: Final Time | J1: Placing | K1: Money Earned
E33: 32
E34: 33
E35: 34
E36: 35
E37: 36
E38: 37
E39: 38
E40: 39
E41: 40
E42: 41
E43: 42
E44: 43
E45: 44
E46: 45
E47: 46
E48: 47
E49: 48
E50: 49
E51: 50
E52: 51
E53: 52
E54: 53
E55: 54
E56: 55
E57: 56
E58: 57
E59: 58
E60: 59
E61: 60
E62: 61
E63: 62
E64: 63
E65: 64
E66: 65
E67: 66
E68: 67
E69: 68
E70: 69
E71: 70
E72: 71
E73: 72
E74: 73
E75: 74
E76: 75
E77: 76
E78: 77
E79: 78
E80: 79
E81: 80
E82: 81
E83: 82
E84: 83
E85: 84
E86: 85
E87: 86
E88: 87
E89: 88
E90: 89
E91: 90
E92: 91
E93: 92
E94: 93
E95: 94
E96: 95
E97: 96
E98: 97
E99: 98
E100: 99
E101: 100
E102: 101
E103: 102
E104: 103
E105: 104
E106: 105
E107: 106
E108: 107
E109: 108
E110: 109
E111: 110
E112: 111
E113: 112
E114: 113
E115: 114
E116: 115
E117: 116
E118: 117
E119: 118
E120: 119
E121: 120
E122: 121
E123: 122
E124: 123
E125: 124
E126: 125
E127: 126
E128: 127
E129: 128
E130: 129
E131: 130
E132: 131
E133: 132
E134: 133
E135: 134
E136: 135
E137: 136
E138: 137
E139: 138
E140: 139
E141: 140
E142: 141
E143: 142
E144: 143
E145: 144
E146: 145
E147: 146
E148: 147
E149: 148
E150: 149
E151: 150
E152: 151
E153: 152
E154: 153
E155: 154
E156: 155
E157: 156
E158: 157
E159: 158
E160: 159
E161: 160
E162: 161
E163: 162
E164: 163
E165: 164
E166: 165
E167: 166
E168: 167
E169: 168
E170: 169
E171: 170
E172: 171
E173: 172
E174: 173
E175: 174
E176: 175
E177: 176
E178: 177
E179: 178
E180: 179
E181: 180
E182: 181
E183: 182
E184: 183
E185: 184
E186: 185
E187: 186
E188: 187
E189: 188
E190: 189
E191: 190
E192: 191
E193: 192
E194: 193
E195: 194
E196: 195
E197: 196
E198: 197
E199: 198
E200: 199
E201: 200
E202: 201
E203: 202
E204: 203
E205: 204
E206: 205
E207: 206
E208: 207
E209: 208
E210: 209
E211: 210
E212: 211
E213: 212
E214: 213
E215: 214
E216: 215
E217: 216
E218: 217
E219: 218
E220: 219
E221: 220
E222: 221
E223: 222
E224: 223
E225: 224
E226: 225
E227: 226
E228: 227
E229: 228
E230: 229
E231: 230
... 70 more rows

Sheet Future champs
A1: Draw | B1: Rider Name | C1: Horse Name | D1: Time | E1: Placing | F1: Money Earned
A2: 1 | B2: Bryson Rawson | D2: 20.454
A3: 2 | B3: MacClaine DeGroot | D3: 19.284
A4: 3 | B4: Madelyn Taylor | C4: Specsbostonvelvet | D4: 17.664
A5: 4 | B5: Daylin Caskey | C5: Hidden Lace | D5: 19.478
A6: 5 | B6: Maxine McGehee | C6: Berny | D6: 40.239
A7: 6 | B7: Whitley Green | C7: Dollar | D7: 30.415
A8: 7 | B8: RuthAnn Hutchison | C8: Freckles | D8: 26.045
A9: 8 | B9: Breelyn Black | C9: Poptart | D9: 35.619
A10: 9 | B10: Bryce Cain
A11: 10 | B11: Wyatt Williams | D11: broken
A12: 11 | B12: Coralee Williams | D12: 25.531
A13: 12
A14: 13
A15: 14
A16: 15
A17: 16
A18: 17
A19: 18
A20: 19
A21: 20

Sheet Average
A1: Parker County Arena
A2: Open
A3: 4 Yr Fut | B3: 5 Yr Fut | C3: Der | D3: Age Inct. | E3: Am | F3: Carry | G3: T/C | H3: F/F | I3: Mem | J3: Nom | K3: Av | L3: BBR | M3: WPRA | N3: Draw | O3: Owner Name | P3: Rider Name | Q3: Horse Name | R3: Pen | S3: Time 1 | T3: Final Time 1 | U3: Pen | V3: Time 2 | W3: Final Time 2 | X3: Total Time | Y3: Average Time | Z3: Placing | AA3: Money Earned | AC3: D Placing | AE3: Split
N4: 1 | T4: =IF(OR(R4=5,R4=10, R4=15, R4="BP",R4="SCR"),"NT",S4) -> 0 | W4: =IF(OR(U4=5,U4=10, U4=15, U4="BP",U4="SCR"),"NT",V4) -> 0 | X4: =(T4+W4) -> 0 | Y4: =(T4+W4)/2 -> 0 | AC4: 1D
N5: 2 | T5: 0 | W5: 0 | X5: 0 | Y5: 0 | AC5: 2D | AD5: =$AD$4+$AE$5 -> 0.5 | AE5: 0.5
N6: 3 | T6: 0 | W6: 0 | X6: 0 | Y6: 0 | AC6: 3D | AD6: =$AD$5+$AE$6 -> 1 | AE6: 0.5
N7: 4 | T7: 0 | W7: 0 | X7: 0 | Y7: 0 | AC7: 4D | AD7: =$AD$6+$AE$7 -> 1.5 | AE7: 0.5
N8: 5 | T8: 0 | W8: 0 | X8: 0 | Y8: 0 | AC8: 5D | AD8: =$AD$7+$AE$8 -> 2 | AE8: 0.5
N9: 6 | T9: 0 | W9: 0 | X9: 0 | Y9: 0
N10: 7 | T10: 0 | W10: 0 | X10: 0 | Y10: 0 | AC10: # Entered
N11: 8 | T11: 0 | W11: 0 | X11: 0 | Y11: 0 | AC11: =COUNTA(P4:P503) -> 0
N12: 9 | T12: 0 | W12: 0 | X12: 0 | Y12: 0
N13: 10 | T13: 0 | W13: 0 | X13: 0 | Y13: 0
N14: 11 | T14: 0 | W14: 0 | X14: 0 | Y14: 0
N15: 12 | T15: 0 | W15: 0 | X15: 0 | Y15: 0
N16: 13 | T16: 0 | W16: 0 | X16: 0 | Y16: 0
N17: 14 | T17: =IF(OR(R17=5,R17=10, R17=15, R17="BP",R17="SCR"),"NT",S17) -> 0 | W17: =IF(OR(U17=5,U17=10, U17=15, U17="BP",U17="SCR"),"NT",V17) -> 0 | X17: =(T17+W17) -> 0 | Y17: =(T17+W17)/2 -> 0
N18: 15 | T18: 0 | W18: 0 | X18: 0 | Y18: 0
N19: 16 | T19: 0 | W19: 0 | X19: 0 | Y19: 0
N20: 17 | T20: 0 | W20: 0 | X20: 0 | Y20: 0
N21: 18 | T21: 0 | W21: 0 | X21: 0 | Y21: 0
N22: 19 | T22: 0 | W22: 0 | X22: 0 | Y22: 0
N23: 20 | T23: 0 | W23: 0 | X23: 0 | Y23: 0
N24: 21 | T24: 0 | W24: 0 | X24: 0 | Y24: 0
N25: 22 | T25: 0 | W25: 0 | X25: 0 | Y25: 0
N26: 23 | T26: 0 | W26: 0 | X26: 0 | Y26: 0
N27: 24 | T27: 0 | W27: 0 | X27: 0 | Y27: 0
N28: 25 | T28: 0 | W28: 0 | X28: 0 | Y28: 0
N29: 26 | T29: 0 | W29: 0 | X29: 0 | Y29: 0
N30: 27 | T30: 0 | W30: 0 | X30: 0 | Y30: 0
N31: 28 | T31: 0 | W31: 0 | X31: 0 | Y31: 0
N32: 29 | T32: 0 | W32: 0 | X32: 0 | Y32: 0
N33: 30 | T33: 0 | W33: 0 | X33: 0 | Y33: 0
N34: 31 | T34: 0 | W34: 0 | X34: 0 | Y34: 0
N35: 32 | T35: 0 | W35: 0 | X35: 0 | Y35: 0
N36: 33 | T36: 0 | W36: 0 | X36: 0 | Y36: 0
N37: 34 | T37: 0 | W37: 0 | X37: 0 | Y37: 0
N38: 35 | T38: 0 | W38: 0 | X38: 0 | Y38: 0
N39: 36 | T39: 0 | W39: 0 | X39: 0 | Y39: 0
N40: 37 | T40: 0 | W40: 0 | X40: 0 | Y40: 0
N41: 38 | T41: 0 | W41: 0 | X41: 0 | Y41: 0
N42: 39 | T42: 0 | W42: 0 | X42: 0 | Y42: 0
N43: 40 | T43: 0 | W43: 0 | X43: 0 | Y43: 0
N44: 41 | T44: 0 | W44: 0 | X44: 0 | Y44: 0
N45: 42 | T45: 0 | W45: 0 | X45: 0 | Y45: 0
N46: 43 | T46: 0 | W46: 0 | X46: 0 | Y46: 0
N47: 44 | T47: 0 | W47: 0 | X47: 0 | Y47: 0
N48: 45 | T48: 0 | W48: 0 | X48: 0 | Y48: 0
N49: 46 | T49: 0 | W49: 0 | X49: 0 | Y49: 0
N50: 47 | T50: 0 | W50: 0 | X50: 0 | Y50: 0
N51: 48 | T51: 0 | W51: 0 | X51: 0 | Y51: 0
N52: 49 | T52: 0 | W52: 0 | X52: 0 | Y52: 0
N53: 50 | T53: 0 | W53: 0 | X53: 0 | Y53: 0
N54: 51 | T54: 0 | W54: 0 | X54: 0 | Y54: 0
N55: 52 | T55: 0 | W55: 0 | X55: 0 | Y55: 0
N56: 53 | T56: 0 | W56: 0 | X56: 0 | Y56: 0
N57: 54 | T57: 0 | W57: 0 | X57: 0 | Y57: 0
N58: 55 | T58: 0 | W58: 0 | X58: 0 | Y58: 0
N59: 56 | T59: 0 | W59: 0 | X59: 0 | Y59: 0
N60: 57 | T60: 0 | W60: 0 | X60: 0 | Y60: 0
N61: 58 | T61: 0 | W61: 0 | X61: 0 | Y61: 0
N62: 59 | T62: 0 | W62: 0 | X62: 0 | Y62: 0
N63: 60 | T63: 0 | W63: 0 | X63: 0 | Y63: 0
N64: 61 | T64: 0 | W64: 0 | X64: 0 | Y64: 0
N65: 62 | T65: 0 | W65: 0 | X65: 0 | Y65: 0
N66: 63 | T66: 0 | W66: 0 | X66: 0 | Y66: 0
N67: 64 | T67: 0 | W67: 0 | X67: 0 | Y67: 0
N68: 65 | T68: 0 | W68: 0 | X68: 0 | Y68: 0
N69: 66 | T69: =IF(OR(R69=5,R69=10, R69=15, R69="BP",R69="SCR"),"NT",S69) -> 0 | W69: =IF(OR(U69=5,U69=10, U69=15, U69="BP",U69="SCR"),"NT",V69) -> 0 | X69: =(T69+W69) -> 0 | Y69: =(T69+W69)/2 -> 0
N70: 67 | T70: 0 | W70: 0 | X70: 0 | Y70: 0
N71: 68 | T71: 0 | W71: 0 | X71: 0 | Y71: 0
N72: 69 | T72: 0 | W72: 0 | X72: 0 | Y72: 0
N73: 70 | T73: 0 | W73: 0 | X73: 0 | Y73: 0
N74: 71 | T74: 0 | W74: 0 | X74: 0 | Y74: 0
N75: 72 | T75: 0 | W75: 0 | X75: 0 | Y75: 0
N76: 73 | T76: 0 | W76: 0 | X76: 0 | Y76: 0
N77: 74 | T77: 0 | W77: 0 | X77: 0 | Y77: 0
N78: 75 | T78: 0 | W78: 0 | X78: 0 | Y78: 0
N79: 76 | T79: 0 | W79: 0 | X79: 0 | Y79: 0
N80: 77 | T80: 0 | W80: 0 | X80: 0 | Y80: 0
N81: 78 | T81: 0 | W81: 0 | X81: 0 | Y81: 0
N82: 79 | T82: 0 | W82: 0 | X82: 0 | Y82: 0
N83: 80 | T83: 0 | W83: 0 | X83: 0 | Y83: 0
N84: 81 | T84: 0 | W84: 0 | X84: 0 | Y84: 0
N85: 82 | T85: 0 | W85: 0 | X85: 0 | Y85: 0
N86: 83 | T86: 0 | W86: 0 | X86: 0 | Y86: 0
N87: 84 | T87: 0 | W87: 0 | X87: 0 | Y87: 0
N88: 85 | T88: 0 | W88: 0 | X88: 0 | Y88: 0
N89: 86 | T89: 0 | W89: 0 | X89: 0 | Y89: 0
N90: 87 | T90: 0 | W90: 0 | X90: 0 | Y90: 0
N91: 88 | T91: 0 | W91: 0 | X91: 0 | Y91: 0
N92: 89 | T92: 0 | W92: 0 | X92: 0 | Y92: 0
N93: 90 | T93: 0 | W93: 0 | X93: 0 | Y93: 0
N94: 91 | T94: 0 | W94: 0 | X94: 0 | Y94: 0
N95: 92 | T95: 0 | W95: 0 | X95: 0 | Y95: 0
N96: 93 | T96: 0 | W96: 0 | X96: 0 | Y96: 0
N97: 94 | T97: 0 | W97: 0 | X97: 0 | Y97: 0
N98: 95 | T98: 0 | W98: 0 | X98: 0 | Y98: 0
N99: 96 | T99: 0 | W99: 0 | X99: 0 | Y99: 0
N100: 97 | T100: 0 | W100: 0 | X100: 0 | Y100: 0
N101: 98 | T101: 0 | W101: 0 | X101: 0 | Y101: 0
N102: 99 | T102: 0 | W102: 0 | X102: 0 | Y102: 0
N103: 100 | T103: 0 | W103: 0 | X103: 0 | Y103: 0
N104: 101 | T104: 0 | W104: 0 | X104: 0 | Y104: 0
N105: 102 | T105: 0 | W105: 0 | X105: 0 | Y105: 0
N106: 103 | T106: 0 | W106: 0 | X106: 0 | Y106: 0
N107: 104 | T107: 0 | W107: 0 | X107: 0 | Y107: 0
N108: 105 | T108: 0 | W108: 0 | X108: 0 | Y108: 0
N109: 106 | T109: 0 | W109: 0 | X109: 0 | Y109: 0
N110: 107 | T110: 0 | W110: 0 | X110: 0 | Y110: 0
N111: 108 | T111: 0 | W111: 0 | X111: 0 | Y111: 0
N112: 109 | T112: 0 | W112: 0 | X112: 0 | Y112: 0
N113: 110 | T113: 0 | W113: 0 | X113: 0 | Y113: 0
N114: 111 | T114: 0 | W114: 0 | X114: 0 | Y114: 0
N115: 112 | T115: 0 | W115: 0 | X115: 0 | Y115: 0
N116: 113 | T116: 0 | W116: 0 | X116: 0 | Y116: 0
N117: 114 | T117: 0 | W117: 0 | X117: 0 | Y117: 0
N118: 115 | T118: 0 | W118: 0 | X118: 0 | Y118: 0
N119: 116 | T119: 0 | W119: 0 | X119: 0 | Y119: 0
N120: 117 | T120: 0 | W120: 0 | X120: 0 | Y120: 0
N121: 118 | T121: 0 | W121: 0 | X121: 0 | Y121: 0
N122: 119 | T122: 0 | W122: 0 | X122: 0 | Y122: 0
N123: 120 | T123: 0 | W123: 0 | X123: 0 | Y123: 0
N124: 121 | T124: 0 | W124: 0 | X124: 0 | Y124: 0
N125: 122 | T125: 0 | W125: 0 | X125: 0 | Y125: 0
N126: 123 | T126: 0 | W126: 0 | X126: 0 | Y126: 0
N127: 124 | T127: 0 | W127: 0 | X127: 0 | Y127: 0
N128: 125 | T128: 0 | W128: 0 | X128: 0 | Y128: 0
N129: 126 | T129: 0 | W129: 0 | X129: 0 | Y129: 0
N130: 127 | T130: 0 | W130: 0 | X130: 0 | Y130: 0
N131: 128 | T131: 0 | W131: 0 | X131: 0 | Y131: 0
N132: 129 | T132: 0 | W132: 0 | X132: 0 | Y132: 0
N133: 130 | T133: =IF(OR(R133=5,R133=10, R133=15, R133="BP",R133="SCR"),"NT",S133) -> 0 | W133: =IF(OR(U133=5,U133=10, U133=15, U133="BP",U133="SCR"),"NT",V133) -> 0 | X133: =(T133+W133) -> 0 | Y133: =(T133+W133)/2 -> 0
N134: 131 | T134: 0 | W134: 0 | X134: 0 | Y134: 0
N135: 132 | T135: 0 | W135: 0 | X135: 0 | Y135: 0
N136: 133 | T136: 0 | W136: 0 | X136: 0 | Y136: 0
N137: 134 | T137: 0 | W137: 0 | X137: 0 | Y137: 0
N138: 135 | T138: 0 | W138: 0 | X138: 0 | Y138: 0
N139: 136 | T139: 0 | W139: 0 | X139: 0 | Y139: 0
N140: 137 | T140: 0 | W140: 0 | X140: 0 | Y140: 0
N141: 138 | T141: 0 | W141: 0 | X141: 0 | Y141: 0
N142: 139 | T142: 0 | W142: 0 | X142: 0 | Y142: 0
N143: 140 | T143: 0 | W143: 0 | X143: 0 | Y143: 0
N144: 141 | T144: 0 | W144: 0 | X144: 0 | Y144: 0
N145: 142 | T145: 0 | W145: 0 | X145: 0 | Y145: 0
N146: 143 | T146: 0 | W146: 0 | X146: 0 | Y146: 0
N147: 144 | T147: 0 | W147: 0 | X147: 0 | Y147: 0
N148: 145 | T148: 0 | W148: 0 | X148: 0 | Y148: 0
N149: 146 | T149: 0 | W149: 0 | X149: 0 | Y149: 0
N150: 147 | T150: 0 | W150: 0 | X150: 0 | Y150: 0
N151: 148 | T151: 0 | W151: 0 | X151: 0 | Y151: 0
N152: 149 | T152: 0 | W152: 0 | X152: 0 | Y152: 0
N153: 150 | T153: 0 | W153: 0 | X153: 0 | Y153: 0
N154: 151 | T154: 0 | W154: 0 | X154: 0 | Y154: 0
N155: 152 | T155: 0 | W155: 0 | X155: 0 | Y155: 0
N156: 153 | T156: 0 | W156: 0 | X156: 0 | Y156: 0
N157: 154 | T157: 0 | W157: 0 | X157: 0 | Y157: 0
N158: 155 | T158: 0 | W158: 0 | X158: 0 | Y158: 0
N159: 156 | T159: 0 | W159: 0 | X159: 0 | Y159: 0
N160: 157 | T160: 0 | W160: 0 | X160: 0 | Y160: 0
N161: 158 | T161: 0 | W161: 0 | X161: 0 | Y161: 0
N162: 159 | T162: 0 | W162: 0 | X162: 0 | Y162: 0
N163: 160 | T163: 0 | W163: 0 | X163: 0 | Y163: 0
N164: 161 | T164: 0 | W164: 0 | X164: 0 | Y164: 0
N165: 162 | T165: 0 | W165: 0 | X165: 0 | Y165: 0
N166: 163 | T166: 0 | W166: 0 | X166: 0 | Y166: 0
N167: 164 | T167: 0 | W167: 0 | X167: 0 | Y167: 0
N168: 165 | T168: 0 | W168: 0 | X168: 0 | Y168: 0
N169: 166 | T169: 0 | W169: 0 | X169: 0 | Y169: 0
N170: 167 | T170: 0 | W170: 0 | X170: 0 | Y170: 0
N171: 168 | T171: 0 | W171: 0 | X171: 0 | Y171: 0
N172: 169 | T172: 0 | W172: 0 | X172: 0 | Y172: 0
N173: 170 | T173: 0 | W173: 0 | X173: 0 | Y173: 0
N174: 171 | T174: 0 | W174: 0 | X174: 0 | Y174: 0
N175: 172 | T175: 0 | W175: 0 | X175: 0 | Y175: 0
N176: 173 | T176: 0 | W176: 0 | X176: 0 | Y176: 0
N177: 174 | T177: 0 | W177: 0 | X177: 0 | Y177: 0
N178: 175 | T178: 0 | W178: 0 | X178: 0 | Y178: 0
N179: 176 | T179: 0 | W179: 0 | X179: 0 | Y179: 0
N180: 177 | T180: 0 | W180: 0 | X180: 0 | Y180: 0
N181: 178 | T181: 0 | W181: 0 | X181: 0 | Y181: 0
N182: 179 | T182: 0 | W182: 0 | X182: 0 | Y182: 0
N183: 180 | T183: 0 | W183: 0 | X183: 0 | Y183: 0
N184: 181 | T184: 0 | W184: 0 | X184: 0 | Y184: 0
N185: 182 | T185: 0 | W185: 0 | X185: 0 | Y185: 0
N186: 183 | T186: 0 | W186: 0 | X186: 0 | Y186: 0
N187: 184 | T187: 0 | W187: 0 | X187: 0 | Y187: 0
N188: 185 | T188: 0 | W188: 0 | X188: 0 | Y188: 0
N189: 186 | T189: 0 | W189: 0 | X189: 0 | Y189: 0
N190: 187 | T190: 0 | W190: 0 | X190: 0 | Y190: 0
N191: 188 | T191: 0 | W191: 0 | X191: 0 | Y191: 0
N192: 189 | T192: 0 | W192: 0 | X192: 0 | Y192: 0
N193: 190 | T193: 0 | W193: 0 | X193: 0 | Y193: 0
N194: 191 | T194: 0 | W194: 0 | X194: 0 | Y194: 0
N195: 192 | T195: 0 | W195: 0 | X195: 0 | Y195: 0
N196: 193 | T196: 0 | W196: 0 | X196: 0 | Y196: 0
N197: 194 | T197: =IF(OR(R197=5,R197=10, R197=15, R197="BP",R197="SCR"),"NT",S197) -> 0 | W197: =IF(OR(U197=5,U197=10, U197=15, U197="BP",U197="SCR"),"NT",V197) -> 0 | X197: =(T197+W197) -> 0 | Y197: =(T197+W197)/2 -> 0
N198: 195 | T198: 0 | W198: 0 | X198: 0 | Y198: 0
N199: 196 | T199: 0 | W199: 0 | X199: 0 | Y199: 0
N200: 197 | T200: 0 | W200: 0 | X200: 0 | Y200: 0
... 303 more rows

Sheet BFA 2D Payout (hidden)
A1: BFA 2D Payout
A2: Entry Fee | B2: # Entries | C2: % Payback | D2: Added $ | E2: Total Payout | F2: Each Go
A3: 25 | B3: 19 | C3: 0.8 | D3: 200 | E3: =(A3*$C$3)*B3+D3 -> 580 | F3: 0.3
F4: =$E$3*$F$3 -> 174
A5: $5,000-7,500 Pays 5 Places 4 to 1D 1 to 2D
A6: Placings | B6: 1D | D6: 2D
A7: 1st | B7: =($F$4*$C$7) -> 57.42 | C7: 0.33 | D7: =$F$4*$E$7 -> 12.18 | E7: 0.07
A8: 2nd | B8: =$F$4*$C$8 -> 46.98 | C8: 0.27
A9: 3rd | B9: =$F$4*$C$9 -> 34.8 | C9: 0.2
A10: 4th | B10: =$F$4*$C$10 -> 22.62 | C10: 0.13
A11: Totals | B11: =SUM(B7:B10) -> 161.82 | D11: =SUM(D7:D10) -> 12.18 | E11: =(C7+C8+C9+C10+E7+E8) -> 1
A12: =B11+D11 -> 174
A13: $7,501 - 10,000 Pays 6 Places 4 to 1D, 2 to 2D
A14: Placings | B14: 1D | D14: 2D
A15: 1st | B15: =$F$4*$C$15 -> 50.46 | C15: 0.29 | D15: =$F$4*$E$15 -> 15.66 | E15: 0.09
A16: 2nd | B16: =+$F$4*$C$16 -> 41.76 | C16: 0.24 | D16: =F4*E16 -> 8.7 | E16: 0.05
A17: 3rd | B17: =$F$4*$C$17 -> 33.06 | C17: 0.19
A18: 4th | B18: =$F$4*$C$18 -> 24.36 | C18: 0.14
A19: Totals | B19: =SUM(B15:B18) -> 149.64 | D19: =D16+D15 -> 24.36 | E19: =SUM(C15+C16+C17+C18+E15+E16) -> 1
A20: =D19+B19 -> 174
A21: $10,001 - $15,000 Payes 8 Places 5 to 1D, 3 to 2D
A22: Placings | B22: 1D | D22: 2D
A23: 1st | B23: =F4*C23 -> 41.76 | C23: 0.24 | D23: =F4*E23 -> 12.18 | E23: 0.07
A24: 2nd | B24: =F4*C24 -> 34.8 | C24: 0.2 | D24: =F4*E24 -> 8.7 | E24: 0.05
A25: 3rd | B25: =F4*C25 -> 29.58 | C25: 0.17 | D25: =F4*E25 -> 6.96 | E25: 0.04
A26: 4th | B26: =F4*C26 -> 22.62 | C26: 0.13
A27: 5th | B27: =F4*C27 -> 17.4 | C27: 0.1
A28: Totals | B28: =SUM(B23:B27) -> 146.16 | D28: =SUM(D23:D27) -> 27.84 | E28: =C23+C24+C25+C26+C27+E23+E24+E25 -> 1
A29: =B28+D28 -> 174
A30: $15,001 - $25,000 Payes 11 Places 7 to 1D, 4 to 2D
A31: Placings | B31: 1D | D31: 2D
A32: 1st | B32: =$F$4*C32 -> 36.54 | C32: 0.21 | D32: =$F$4*E32 -> 8.7 | E32: 0.05
A33: 2nd | B33: =$F$4*C33 -> 31.32 | C33: 0.18 | D33: =$F$4*E33 -> 6.96 | E33: 0.04
A34: 3rd | B34: 26.1 | C34: 0.15 | D34: 5.22 | E34: 0.03
A35: 4th | B35: 19.14 | C35: 0.11 | D35: 3.48 | E35: 0.02
A36: 5th | B36: 13.92 | C36: 0.08
A37: 6th | B37: 12.18 | C37: 0.07
A38: 7th | B38: 10.44 | C38: 0.06
A39: Totals | B39: =SUM(B32:B38) -> 149.64 | D39: =SUM(D32:D38) -> 24.36 | E39: =C32+C33+C34+C35+C36+C37+C38+E32+E33+E34+E35 -> 1
A40: =SUM(B39+D39) -> 174
A41: $25,001 - $35,000 Payes 12 Places 8 to 1D, 4 to 2D
A42: Placings | B42: 1D | D42: 2D
A43: 1st | B43: =$F$4*C43 -> 33.06 | C43: 0.19 | D43: =$F$4*E43 -> 8.7 | E43: 0.05
A44: 2nd | B44: =$F$4*C44 -> 26.1 | C44: 0.15 | D44: =$F$4*E44 -> 6.96 | E44: 0.04
A45: 3rd | B45: 20.88 | C45: 0.12 | D45: 5.22 | E45: 0.03
A46: 4th | B46: 17.4 | C46: 0.1 | D46: 3.48 | E46: 0.02
A47: 5th | B47: 15.66 | C47: 0.09
A48: 6th | B48: 13.92 | C48: 0.08
A49: 7th | B49: 12.18 | C49: 0.07
A50: 8th | B50: 10.44 | C50: 0.06
A51: Totals | B51: =SUM(B43:B50) -> 149.64 | D51: =SUM(D43:D46) -> 24.36 | E51: =C43+C44+C45+C46+C47+C48+C49+C50+E43+E44+E45+E46 -> 1
A52: =D51+B51 -> 174

Sheet 2D Payout
A1: 2D Payout
A2: Entry Fee | B2: # Entries | C2: % Payback | D2: Added $ | E2: Total Payout
A3: 100 | B3: 7 | C3: 0.8 | D3: 0 | E3: =(A3*$C$3)*B3+D3 -> 560
A5: % in each D | B5: 0.6 | C5: 0.4 | D5: Total % = | E5: =SUM(B5:C5) -> 1
B6: 1D | C6: 2D
B7: =(($A$3*$B$3*$C$3*$B$5)+($D$3*$B$5)) -> 336 | C7: =(($A$3*$B$3*$C$3*$C$5)+($D$3*$C$5)) -> 224
A8: Totals | B8: =SUM(B7) -> 336 | C8: =SUM(C7) -> 224 | D8: =SUM(B8:C8) -> 560
A10: For 1-7 riders 1 place
A11: Placings | B11: 1D | C11: 2D
A12: 1st | B12: =$B$7*$E$12 -> 336 | C12: =$C$7*$E$5 -> 224 | D12: è | E12: 1
A13: Totals | B13: =SUM(B12:B12) -> 336 | C13: =SUM(C12:C12) -> 224 | D13: =SUM(B13:C13) -> 560 | E13: =SUM(E12) -> 1
A15: For 8-11 riders 2 places
A16: Placings | B16: 1D | C16: 2D
A17: 1st | B17: =$B$7*$E$17 -> 201.6 | C17: =$C$7*$E$17 -> 134.4 | D17: è | E17: 0.6
A18: 2nd | B18: =$B$7*$E$18 -> 134.4 | C18: =$C$7*$E$18 -> 89.6 | D18: è | E18: 0.4
A19: Totals | B19: =SUM(B17:B18) -> 336 | C19: =SUM(C17:C18) -> 224 | D19: =SUM(B19:C19) -> 560 | E19: =SUM(E17:E18) -> 1
A21: For 12-15 riders 3 places
A22: Placings | B22: 1D | C22: 2D
A23: 1st | B23: =$B$7*$E$23 -> 168 | C23: =$C$7*$E$23 -> 112 | D23: è | E23: 0.5
A24: 2nd | B24: =$B$7*$E$24 -> 100.8 | C24: =$C$7*$E$24 -> 67.2 | D24: è | E24: 0.3
A25: 3rd | B25: =$B$7*$E$25 -> 67.2 | C25: =$C$7*$E$25 -> 44.8 | D25: è | E25: 0.2
A26: Totals | B26: =SUM(B23:B25) -> 336 | C26: =SUM(C23:C25) -> 224 | D26: =SUM(B26:C26) -> 560 | E26: =SUM(E23:E25) -> 1
A28: For 16-19 riders 4 places
A29: Placings | B29: 1D | C29: 2D
A30: 1st | B30: =$B$7*$E$30 -> 134.4 | C30: =$C$7*$E$30 -> 89.6 | D30: è | E30: 0.4
A31: 2nd | B31: =$B$7*$E$31 -> 100.8 | C31: =$C$7*$E$31 -> 67.2 | D31: è | E31: 0.3
A32: 3rd | B32: =$B$7*$E$32 -> 67.2 | C32: =$C$7*$E$32 -> 44.8 | D32: è | E32: 0.2
A33: 4th | B33: =$B$7*$E$33 -> 33.6 | C33: =$C$7*$E$33 -> 22.4 | D33: è | E33: 0.1
A34: Totals | B34: =SUM(B30:B33) -> 336 | C34: =SUM(C30:C33) -> 224 | D34: =SUM(B34:C34) -> 560 | E34: =SUM(E30:E33) -> 1
A36: For 20-23 riders 5 places
A37: Placings | B37: 1D | C37: 2D
A38: 1st | B38: =$B$7*$E$38 -> 100.8 | C38: =$C$7*$E$38 -> 67.2 | D38: è | E38: 0.3
A39: 2nd | B39: =$B$7*$E$39 -> 84 | C39: =$C$7*$E$39 -> 56 | D39: è | E39: 0.25
A40: 3rd | B40: =$B$7*$E$40 -> 67.2 | C40: =$C$7*$E$40 -> 44.8 | D40: è | E40: 0.2
A41: 4th | B41: =$B$7*$E$41 -> 50.4 | C41: =$C$7*$E$41 -> 33.6 | D41: è | E41: 0.15
A42: 5th | B42: =$B$7*$E$42 -> 33.6 | C42: =$C$7*$E$42 -> 22.4 | D42: è | E42: 0.1
A43: Totals | B43: =SUM(B38:B42) -> 336 | C43: =SUM(C38:C42) -> 224 | D43: =SUM(B43:C43) -> 560 | E43: =SUM(E38:E42) -> 1
A45: For 24-27 riders 6 places
A46: Placings | B46: 1D | C46: 2D
A47: 1st | B47: =$B$7*$E$47 -> 84 | C47: =$C$7*$E$47 -> 56 | D47: è | E47: 0.25
A48: 2nd | B48: =$B$7*$E$48 -> 67.2 | C48: =$C$7*$E$48 -> 44.8 | D48: è | E48: 0.2
A49: 3rd | B49: =$B$7*$E$49 -> 60.48 | C49: =$C$7*$E$49 -> 40.32 | D49: è | E49: 0.18
A50: 4th | B50: =$B$7*$E$50 -> 50.4 | C50: =$C$7*$E$50 -> 33.6 | D50: è | E50: 0.15
A51: 5th | B51: =$B$7*$E$51 -> 40.32 | C51: =$C$7*$E$51 -> 26.88 | D51: è | E51: 0.12
A52: 6th | B52: =$B$7*$E$52 -> 33.6 | C52: =$C$7*$E$52 -> 22.4 | D52: è | E52: 0.1
A53: Totals | B53: =SUM(B47:B52) -> 336 | C53: =SUM(C47:C52) -> 224 | D53: =SUM(B53:C53) -> 560 | E53: =SUM(E47:E52) -> 1
A55: For 28-31 riders 7 places
A56: Placings | B56: 1D | C56: 2D
A57: 1st | B57: =$B$7*$E$57 -> 73.92 | C57: =$C$7*$E$57 -> 49.28 | D57: è | E57: 0.22
A58: 2nd | B58: =$B$7*$E$58 -> 60.48 | C58: =$C$7*$E$58 -> 40.32 | D58: è | E58: 0.18
A59: 3rd | B59: =$B$7*$E$59 -> 53.76 | C59: =$C$7*$E$59 -> 35.84 | D59: è | E59: 0.16
A60: 4th | B60: =$B$7*$E$60 -> 47.04 | C60: =$C$7*$E$60 -> 31.36 | D60: è | E60: 0.14
A61: 5th | B61: =$B$7*$E$61 -> 40.32 | C61: =$C$7*$E$61 -> 26.88 | D61: è | E61: 0.12
A62: 6th | B62: =$B$7*$E$62 -> 33.6 | C62: =$C$7*$E$62 -> 22.4 | D62: è | E62: 0.1
A63: 7th | B63: =$B$7*$E$63 -> 26.88 | C63: =$C$7*$E$63 -> 17.92 | D63: è | E63: 0.08
A64: Totals | B64: =SUM(B57:B63) -> 336 | C64: =SUM(C57:C63) -> 224 | D64: =SUM(B64:C64) -> 560 | E64: =SUM(E57:E63) -> 1
A66: For 32 or more riders 8 places
A67: Placings | B67: 1D | C67: 2D
A68: 1st | B68: =$B$7*$E$68 -> 77.28 | C68: =$C$7*$E$68 -> 51.52 | D68: è | E68: 0.23
A69: 2nd | B69: =$B$7*$E$69 -> 67.2 | C69: =$C$7*$E$69 -> 44.8 | D69: è | E69: 0.2
A70: 3rd | B70: =$B$7*$E$70 -> 57.12 | C70: =$C$7*$E$70 -> 38.08 | D70: è | E70: 0.17
A71: 4th | B71: =$B$7*$E$71 -> 47.04 | C71: =$C$7*$E$71 -> 31.36 | D71: è | E71: 0.14
A72: 5th | B72: =$B$7*$E$72 -> 36.96 | C72: =$C$7*$E$72 -> 24.64 | D72: è | E72: 0.11
A73: 6th | B73: =$B$7*$E$73 -> 26.88 | C73: =$C$7*$E$73 -> 17.92 | D73: è | E73: 0.08
A74: 7th | B74: =$B$7*$E$74 -> 16.8 | C74: =$C$7*$E$74 -> 11.2 | D74: è | E74: 0.05
A75: 8th | B75: =$B$7*$E$75 -> 6.72 | C75: =$C$7*$E$75 -> 4.48 | D75: è | E75: 0.02
A76: Totals | B76: =SUM(B68:B75) -> 336 | C76: =SUM(C68:C75) -> 224 | D76: =SUM(B76:C76) -> 560 | E76: =SUM(E68:E75) -> 1

Sheet 3D Payout (hidden)
A1: 3D Payout
A2: Entry Fee | B2: # Entries | C2: % Payback | D2: $ From Entry | E2: Added $ | F2: Total Payout
A3: 10 | B3: 3 | C3: 0.8 | D3: =$A$3*$C$3*$B$3 -> 24 | F3: =$D$3+$E$3 -> 24
A5: % in each D | B5: 0.5 | C5: 0.3 | D5: 0.2 | E5: Total % = | F5: =SUM(B5:D5) -> 1
B6: 1D | C6: 2D | D6: 3D
B7: =(($A$3*$B$3*$C$3*$B$5)+($E$3*$B$5)) -> 12 | C7: =(($A$3*$B$3*$C$3*$C$5)+($E$3*$C$5)) -> 7.2 | D7: =(($A$3*$B$3*$C$3*$D$5)+($E$3*$D$5)) -> 4.8
A8: Totals | B8: =SUM(B7) -> 12 | C8: =SUM(C7) -> 7.2 | D8: 4.8 | E8: =SUM(B8:D8) -> 24
A10: For 1-10 riders 1 place
A11: Placings | B11: 1D | C11: 2D | D11: 3D
A12: 1st | B12: =$B$7*$F$12 -> 12 | C12: =$C$7*$F$12 -> 7.2 | D12: =$D$7*$F$12 -> 4.8 | E12: è | F12: 1
A13: Totals | B13: =SUM(B12:B12) -> 12 | C13: =SUM(C12:C12) -> 7.2 | D13: =SUM(D12:D12) -> 4.8 | E13: =SUM(B13:D13) -> 24 | F13: =SUM(F12) -> 1
A15: For 11-15 riders 2 places
A16: Placings | B16: 1D | C16: 2D | D16: 3D
A17: 1st | B17: =$B$7*$F$17 -> 7.2 | C17: =$C$7*$F$17 -> 4.32 | D17: =$D$7*$F$17 -> 2.88 | E17: è | F17: 0.6
A18: 2nd | B18: =$B$7*$F$18 -> 4.8 | C18: =$C$7*$F$18 -> 2.88 | D18: =$D$7*$F$18 -> 1.92 | E18: è | F18: 0.4
A19: Totals | B19: =SUM(B17:B18) -> 12 | C19: =SUM(C17:C18) -> 7.2 | D19: =SUM(D17:D18) -> 4.8 | E19: =SUM(B19:D19) -> 24 | F19: =SUM(F17:F18) -> 1
A21: For 16-30 riders 3 places
A22: Placings | B22: 1D | C22: 2D | D22: 3D
A23: 1st | B23: =$B$7*$F$23 -> 6 | C23: =$C$7*$F$23 -> 3.6 | D23: =$D$7*$F$23 -> 2.4 | E23: è | F23: 0.5
A24: 2nd | B24: =$B$7*$F$24 -> 3.6 | C24: =$C$7*$F$24 -> 2.16 | D24: =$D$7*$F$24 -> 1.44 | E24: è | F24: 0.3
A25: 3rd | B25: =$B$7*$F$25 -> 2.4 | C25: =$C$7*$F$25 -> 1.44 | D25: =$D$7*$F$25 -> 0.96 | E25: è | F25: 0.2
A26: Totals | B26: =SUM(B23:B25) -> 12 | C26: =SUM(C23:C25) -> 7.2 | D26: =SUM(D22:D25) -> 4.8 | E26: =SUM(B26:D26) -> 24 | F26: =SUM(F23:F25) -> 1
A28: For 31-60 riders 4 places
A29: Placings | B29: 1D | C29: 2D | D29: 3D
A30: 1st | B30: =$B$7*$F$30 -> 5.04 | C30: =$C$7*$F$30 -> 3.024 | D30: =$D$7*$F$30 -> 2.016 | E30: è | F30: 0.42
A31: 2nd | B31: =$B$7*$F$31 -> 3.48 | C31: =$C$7*$F$31 -> 2.088 | D31: =$D$7*$F$31 -> 1.392 | E31: è | F31: 0.29
A32: 3rd | B32: =$B$7*$F$32 -> 2.28 | C32: =$C$7*$F$32 -> 1.368 | D32: =$D$7*$F$32 -> 0.912 | E32: è | F32: 0.19
A33: 4th | B33: =$B$7*$F$33 -> 1.2 | C33: =$C$7*$F$33 -> 0.72 | D33: =$D$7*$F$33 -> 0.48 | E33: è | F33: 0.1
A34: Totals | B34: =SUM(B30:B33) -> 12 | C34: =SUM(C30:C33) -> 7.2 | D34: =SUM(D30:D33) -> 4.8 | E34: =SUM(B34:D34) -> 24 | F34: =SUM(F30:F33) -> 1
A36: For 61-90 riders 5 places
A37: Placings | B37: 1D | C37: 2D | D37: 3D
A38: 1st | B38: =$B$7*$F$38 -> 4.56 | C38: =$C$7*$F$38 -> 2.736 | D38: =$D$7*$F$38 -> 1.824 | E38: è | F38: 0.38
A39: 2nd | B39: =$B$7*$F$39 -> 3.36 | C39: =$C$7*$F$39 -> 2.016 | D39: =$D$7*$F$39 -> 1.344 | E39: è | F39: 0.28
A40: 3rd | B40: =$B$7*$F$40 -> 2.16 | C40: =$C$7*$F$40 -> 1.296 | D40: =$D$7*$F$40 -> 0.864 | E40: è | F40: 0.18
A41: 4th | B41: =$B$7*$F$41 -> 1.2 | C41: =$C$7*$F$41 -> 0.72 | D41: =$D$7*$F$41 -> 0.48 | E41: è | F41: 0.1
A42: 5th | B42: =$B$7*$F$42 -> 0.72 | C42: =$C$7*$F$42 -> 0.432 | D42: =$D$7*$F$42 -> 0.288 | E42: è | F42: 0.06
A43: Totals | B43: =SUM(B38:B42) -> 12 | C43: =SUM(C38:C42) -> 7.2 | D43: =SUM(D38:D42) -> 4.8 | E43: =SUM(B43:D43) -> 24 | F43: =SUM(F38:F42) -> 1
A45: For 91-120 riders 6 places
A46: Placings | B46: 1D | C46: 2D | D46: 3D
A47: 1st | B47: =$B$7*$F$47 -> 4.32 | C47: =$C$7*$F$47 -> 2.592 | D47: =$D$7*$F$47 -> 1.728 | E47: è | F47: 0.36
A48: 2nd | B48: =$B$7*$F$48 -> 3.12 | C48: =$C$7*$F$48 -> 1.872 | D48: =$D$7*$F$48 -> 1.248 | E48: è | F48: 0.26
A49: 3rd | B49: =$B$7*$F$49 -> 1.92 | C49: =$C$7*$F$49 -> 1.152 | D49: =$D$7*$F$49 -> 0.768 | E49: è | F49: 0.16
A50: 4th | B50: =$B$7*$F$50 -> 1.2 | C50: =$C$7*$F$50 -> 0.72 | D50: =$D$7*$F$50 -> 0.48 | E50: è | F50: 0.1
A51: 5th | B51: =$B$7*$F$51 -> 0.84 | C51: =$C$7*$F$51 -> 0.504 | D51: =$D$7*$F$51 -> 0.336 | E51: è | F51: 0.07
A52: 6th | B52: =$B$7*$F$52 -> 0.6 | C52: =$C$7*$F$52 -> 0.36 | D52: =$D$7*$F$52 -> 0.24 | E52: è | F52: 0.05
A53: Totals | B53: =SUM(B47:B52) -> 12 | C53: =SUM(C47:C52) -> 7.2 | D53: =SUM(D47:D52) -> 4.8 | E53: =SUM(B53:D53) -> 24 | F53: =SUM(F47:F52) -> 1
A55: For 121-200 riders 7 places
A56: Placings | B56: 1D | C56: 2D | D56: 3D
A57: 1st | B57: =$B$7*$F$57 -> 3.12 | C57: =$C$7*$F$57 -> 1.872 | D57: =$D$7*$F$57 -> 1.248 | E57: è | F57: 0.26
A58: 2nd | B58: =$B$7*$F$58 -> 2.4 | C58: =$C$7*$F$58 -> 1.44 | D58: =$D$7*$F$58 -> 0.96 | E58: è | F58: 0.2
A59: 3rd | B59: =$B$7*$F$59 -> 1.8 | C59: =$C$7*$F$59 -> 1.08 | D59: =$D$7*$F$59 -> 0.72 | E59: è | F59: 0.15
A60: 4th | B60: =$B$7*$F$60 -> 1.44 | C60: =$C$7*$F$60 -> 0.864 | D60: =$D$7*$F$60 -> 0.576 | E60: è | F60: 0.12
A61: 5th | B61: =$B$7*$F$61 -> 1.2 | C61: =$C$7*$F$61 -> 0.72 | D61: =$D$7*$F$61 -> 0.48 | E61: è | F61: 0.1
A62: 6th | B62: =$B$7*$F$62 -> 1.08 | C62: =$C$7*$F$62 -> 0.648 | D62: =$D$7*$F$62 -> 0.432 | E62: è | F62: 0.09
A63: 7th | B63: =$B$7*$F$63 -> 0.96 | C63: =$C$7*$F$63 -> 0.576 | D63: =$D$7*$F$63 -> 0.384 | E63: è | F63: 0.08
A64: Totals | B64: =SUM(B57:B63) -> 12 | C64: =SUM(C57:C63) -> 7.2 | D64: =SUM(D57:D63) -> 4.8 | E64: =SUM(B64:D64) -> 24 | F64: =SUM(F57:F63) -> 1
A66: For 201 or more riders 8 places
A67: Placings | B67: 1D | C67: 2D | D67: 3D
A68: 1st | B68: =$B$7*0.24 -> 2.88 | C68: =$C$7*0.24 -> 1.728 | D68: =$D$7*0.24 -> 1.152 | E68: è | F68: 0.24
A69: 2nd | B69: =$B$7*0.18 -> 2.16 | C69: =$C$7*0.18 -> 1.296 | D69: =$D$7*0.18 -> 0.864 | E69: è | F69: 0.18
A70: 3rd | B70: =$B$7*0.15 -> 1.8 | C70: =$C$7*0.15 -> 1.08 | D70: =$D$7*0.15 -> 0.72 | E70: è | F70: 0.15
A71: 4th | B71: =$B$7*0.12 -> 1.44 | C71: =$C$7*0.12 -> 0.864 | D71: =$D$7*0.12 -> 0.576 | E71: è | F71: 0.12
A72: 5th | B72: =$B$7*0.1 -> 1.2 | C72: =$C$7*0.1 -> 0.72 | D72: =$D$7*0.1 -> 0.48 | E72: è | F72: 0.1
A73: 6th | B73: =$B$7*0.08 -> 0.96 | C73: =$C$7*0.08 -> 0.576 | D73: =$D$7*0.08 -> 0.384 | E73: è | F73: 0.08
A74: 7th | B74: =$B$7*0.07 -> 0.84 | C74: =$C$7*0.07 -> 0.504 | D74: =$D$7*0.07 -> 0.336 | E74: è | F74: 0.07
A75: 8th | B75: =$B$7*0.06 -> 0.72 | C75: =$C$7*0.06 -> 0.432 | D75: =$D$7*0.06 -> 0.288 | E75: è | F75: 0.06
A76: Totals | B76: =SUM(B68:B75) -> 12 | C76: =SUM(C68:C75) -> 7.2 | D76: =SUM(D68:D75) -> 4.8 | E76: =SUM(B76:D76) -> 24 | F76: =SUM(F68:F75) -> 1

Sheet 4D Payout BBR (hidden)
A1: 4D Payout BBR
A2: Entry Fee | B2: # Entries | C2: % Payback | D2: $ From Entry | E2: Added $ | F2: Total Payout
A3: 40 | B3: 200 | C3: 0.8 | D3: =$A$3*$C$3*$B$3 -> 6400 | E3: 1100 | F3: =($A$3*$C$3)*$B$3+$E$3 -> 7500
A5: % in each D | B5: 0.35 | C5: 0.3 | D5: 0.2 | E5: 0.15 | F5: Total % Payout | G5: =SUM(B5:E5) -> 1
B6: 1D | C6: 2D | D6: 3D | E6: 4D
B7: =(($A$3*$B$3*$C$3*0.35)+($E$3/4)) -> 2515 | C7: =(($A$3*$B$3*$C$3*0.3)+($E$3/4)) -> 2195 | D7: =(($A$3*$B$3*$C$3*0.2)+($E$3/4)) -> 1555 | E7: =(($A$3*$B$3*$C$3*0.15)+($E$3/4)) -> 1235
A8: Totals | B8: =SUM(B7) -> 2515 | C8: =SUM(C7) -> 2195 | D8: 1555 | E8: 1235 | F8: =SUM(B8:E8) -> 7500
A10: For 1-16 riders 1 place
A11: Placings | B11: 1D | C11: 2D | D11: 3D | E11: 4D
A12: 1st | B12: =$B$7*$G$12 -> 2515 | C12: =$C$7*$G$12 -> 2195 | D12: =$D$7*$G$12 -> 1555 | E12: =$E$7*$G$12 -> 1235 | F12: è | G12: 1
A13: Totals | B13: =SUM(B12:B12) -> 2515 | C13: =SUM(C12:C12) -> 2195 | D13: =SUM(D12:D12) -> 1555 | E13: =SUM(E12:E12) -> 1235 | F13: =SUM(B13:E13) -> 7500 | G13: =SUM(G12) -> 1
A15: For 17-33 riders 2 places
A16: Placings | B16: 1D | C16: 2D | D16: 3D | E16: 4D
A17: 1st | B17: =$B$7*$G$17 -> 1509 | C17: =$C$7*$G$17 -> 1317 | D17: =$D$7*$G$17 -> 933 | E17: =$E$7*$G$17 -> 741 | F17: è | G17: 0.6
A18: 2nd | B18: =$B$7*$G$18 -> 1006 | C18: =$C$7*$G$18 -> 878 | D18: =$D$7*$G$18 -> 622 | E18: =$E$7*$G$18 -> 494 | F18: è | G18: 0.4
A19: Totals | B19: =SUM(B17:B18) -> 2515 | C19: =SUM(C17:C18) -> 2195 | D19: =SUM(D17:D18) -> 1555 | E19: =SUM(E17:E18) -> 1235 | F19: =SUM(B19:E19) -> 7500 | G19: =SUM(G17:G18) -> 1
A21: For 34-66 riders 3 places
A22: Placings | B22: 1D | C22: 2D | D22: 3D | E22: 4D
A23: 1st | B23: =$B$7*$G$23 -> 1257.5 | C23: =$C$7*$G$23 -> 1097.5 | D23: =$D$7*$G$23 -> 777.5 | E23: =$E$7*$G$23 -> 617.5 | F23: è | G23: 0.5
A24: 2nd | B24: =$B$7*$G$24 -> 754.5 | C24: =$C$7*$G$24 -> 658.5 | D24: =$D$7*$G$24 -> 466.5 | E24: =$E$7*$G$24 -> 370.5 | F24: è | G24: 0.3
A25: 3rd | B25: =$B$7*$G$25 -> 503 | C25: =$C$7*$G$25 -> 439 | D25: =$D$7*$G$25 -> 311 | E25: =$E$7*$G$25 -> 247 | F25: è | G25: 0.2
A26: Totals | B26: =SUM(B23:B25) -> 2515 | C26: =SUM(C23:C25) -> 2195 | D26: =SUM(D23:D25) -> 1555 | E26: =SUM(E23:E25) -> 1235 | F26: =SUM(B26:E26) -> 7500 | G26: =SUM(G23:G25) -> 1
A28: For 97-95 riders 4 places
A29: Placings | B29: 1D | C29: 2D | D29: 3D | E29: 4D
A30: 1st | B30: =$B$7*$G$30 -> 1006 | C30: =$C$7*$G$30 -> 878 | D30: =$D$7*$G$30 -> 622 | E30: =$E$7*$G$30 -> 494 | F30: è | G30: 0.4
A31: 2nd | B31: =$B$7*$G$31 -> 754.5 | C31: =$C$7*$G$31 -> 658.5 | D31: =$D$7*$G$31 -> 466.5 | E31: =$E$7*$G$31 -> 370.5 | F31: è | G31: 0.3
A32: 3rd | B32: =$B$7*$G$32 -> 503 | C32: =$C$7*$G$32 -> 439 | D32: =$D$7*$G$32 -> 311 | E32: =$E$7*$G$32 -> 247 | F32: è | G32: 0.2
A33: 4th | B33: =$B$7*$G$33 -> 251.5 | C33: =$C$7*$G$33 -> 219.5 | D33: =$D$7*$G$33 -> 155.5 | E33: =$E$7*$G$33 -> 123.5 | F33: è | G33: 0.1
A34: Totals | B34: =SUM(B30:B33) -> 2515 | C34: =SUM(C30:C33) -> 2195 | D34: =SUM(D30:D33) -> 1555 | E34: =SUM(E30:E33) -> 1235 | F34: =SUM(B34:E34) -> 7500 | G34: =SUM(G30:G33) -> 1
A36: For 96-133 riders 5 places
A37: Placings | B37: 1D | C37: 2D | D37: 3D | E37: 4D
A38: 1st | B38: =$B$7*$G$38 -> 829.95 | C38: =$C$7*$G$38 -> 724.35 | D38: =$D$7*G38 -> 513.15 | E38: =$E$7*$G$38 -> 407.55 | F38: è | G38: 0.33
A39: 2nd | B39: =$B$7*$G$39 -> 679.05 | C39: =$C$7*$G$39 -> 592.65 | D39: =$D$7*$G$39 -> 419.85 | E39: =$E$7*$G$39 -> 333.45 | F39: è | G39: 0.27
A40: 3rd | B40: =$B$7*$G$40 -> 503 | C40: =$C$7*$G$40 -> 439 | D40: =$D$7*$G$40 -> 311 | E40: =$E$7*$G$40 -> 247 | F40: è | G40: 0.2
A41: 4th | B41: =$B$7*$G$41 -> 326.95 | C41: =$C$7*$G$41 -> 285.35 | D41: =$D$7*$G$41 -> 202.15 | E41: =$E$7*$G$41 -> 160.55 | F41: è | G41: 0.13
A42: 5th | B42: =$B$7*$G$42 -> 176.05 | C42: =$C$7*$G$42 -> 153.65 | D42: =$D$7*$G$42 -> 108.85 | E42: =$E$7*$G$42 -> 86.45 | F42: è | G42: 0.07
A43: Totals | B43: =SUM(B38:B42) -> 2515 | C43: =SUM(C38:C42) -> 2195 | D43: =SUM(D38:D42) -> 1555 | E43: =SUM(E38:E42) -> 1235 | F43: =SUM(B43:E43) -> 7500 | G43: =SUM(G38:G42) -> 1
A45: For 134-166 riders 6 places
A46: Placings | B46: 1D | C46: 2D | D46: 3D | E46: 4D
A47: 1st | B47: =$B$7*$G$47 -> 729.35 | C47: =$C$7*$G$47 -> 636.55 | D47: =$D$7*$G$47 -> 450.95 | E47: =$E$7*$G$47 -> 358.15 | F47: è | G47: 0.29
A48: 2nd | B48: =$B$7*$G$48 -> 603.6 | C48: =$C$7*$G$48 -> 526.8 | D48: =$D$7*$G$48 -> 373.2 | E48: =$E$7*$G$48 -> 296.4 | F48: è | G48: 0.24
A49: 3rd | B49: =$B$7*$G$49 -> 477.85 | C49: =$C$7*$G$49 -> 417.05 | D49: =$D$7*$G$49 -> 295.45 | E49: =$E$7*$G$49 -> 234.65 | F49: è | G49: 0.19
A50: 4th | B50: =$B$7*$G$50 -> 352.1 | C50: =$C$7*$G$50 -> 307.3 | D50: =$D$7*$G$50 -> 217.7 | E50: =$E$7*$G$50 -> 172.9 | F50: è | G50: 0.14
A51: 5th | B51: =$B$7*$G$51 -> 226.35 | C51: =$C$7*$G$51 -> 197.55 | D51: =$D$7*$G$51 -> 139.95 | E51: =$E$7*$G$51 -> 111.15 | F51: è | G51: 0.09
A52: 6th | B52: =$B$7*$G$52 -> 125.75 | C52: =$C$7*$G$52 -> 109.75 | D52: =$D$7*$G$52 -> 77.75 | E52: =$E$7*$G$52 -> 61.75 | F52: è | G52: 0.05
A53: Totals | B53: =SUM(B47:B52) -> 2515 | C53: =SUM(C47:C52) -> 2195 | D53: =SUM(D47:D52) -> 1555 | E53: =SUM(E47:E52) -> 1235 | F53: =SUM(B53:E53) -> 7500 | G53: =SUM(G47:G52) -> 1
A55: For 167-222 riders 8 places
A56: Placings | B56: 1D | C56: 2D | D56: 3D | E56: 4D
A57: 1st | B57: =$B$7*$G$57 -> 603.6 | C57: =$C$7*$G$57 -> 526.8 | D57: =$D$7*$G$57 -> 373.2 | E57: =$E$7*$G$57 -> 296.4 | F57: è | G57: 0.24
A58: 2nd | B58: =$B$7*$G$58 -> 503 | C58: =$C$7*$G$58 -> 439 | D58: =$D$7*$G$58 -> 311 | E58: =$E$7*$G$58 -> 247 | F58: è | G58: 0.2
A59: 3rd | B59: =$B$7*$G$59 -> 427.55 | C59: =$C$7*$G$59 -> 373.15 | D59: =$D$7*$G$59 -> 264.35 | E59: =$E$7*$G$59 -> 209.95 | F59: è | G59: 0.17
A60: 4th | B60: =$B$7*$G$60 -> 326.95 | C60: =$C$7*$G$60 -> 285.35 | D60: =$D$7*$G$60 -> 202.15 | E60: =$E$7*$G$60 -> 160.55 | F60: è | G60: 0.13
A61: 5th | B61: =$B$7*$G$61 -> 251.5 | C61: =$C$7*$G$61 -> 219.5 | D61: =$D$7*$G$61 -> 155.5 | E61: =$E$7*$G$61 -> 123.5 | F61: è | G61: 0.1
A62: 6th | B62: =$B$7*$G$62 -> 176.05 | C62: =$C$7*$G$62 -> 153.65 | D62: =$D$7*$G$62 -> 108.85 | E62: =$E$7*$G$62 -> 86.45 | F62: è | G62: 0.07
A63: 7th | B63: =$B$7*$G$63 -> 125.75 | C63: =$C$7*$G$63 -> 109.75 | D63: =$D$7*$G$63 -> 77.75 | E63: =$E$7*$G$63 -> 61.75 | F63: è | G63: 0.05
A64: 8th | B64: =$B$7*$G$64 -> 100.6 | C64: =$C$7*$G$64 -> 87.8 | D64: =$D$7*$G$64 -> 62.2 | E64: =$E$7*$G$64 -> 49.4 | F64: è | G64: 0.04
A65: Totals | B65: =SUM(B57:B64) -> 2515 | C65: =SUM(C57:C64) -> 2195 | D65: =SUM(D57:D64) -> 1555 | E65: =SUM(E57:E64) -> 1235 | F65: =SUM(B65:E65) -> 7500 | G65: =SUM(G57:G64) -> 1
A67: For 223-333 riders 10 places
A68: Placings | B68: 1D | C68: 2D | D68: 3D | E68: 4D
A69: 1st | B69: =$B$7*$G$69 -> 528.15 | C69: =$C$7*$G$69 -> 460.95 | D69: =$D$7*$G$69 -> 326.55 | E69: =$E$7*$G$69 -> 259.35 | F69: è | G69: 0.21
A70: 2nd | B70: =$B$7*$G$70 -> 452.7 | C70: =$C$7*$G$70 -> 395.1 | D70: =$D$7*$G$70 -> 279.9 | E70: =$E$7*$G$70 -> 222.3 | F70: è | G70: 0.18
A71: 3rd | B71: =$B$7*$G$71 -> 377.25 | C71: =$C$7*$G$71 -> 329.25 | D71: =$D$7*$G$71 -> 233.25 | E71: =$E$7*$G$71 -> 185.25 | F71: è | G71: 0.15
A72: 4th | B72: =$B$7*$G$72 -> 301.8 | C72: =$C$7*$G$72 -> 263.4 | D72: =$D$7*$G$72 -> 186.6 | E72: =$E$7*$G$72 -> 148.2 | F72: è | G72: 0.12
A73: 5th | B73: =$B$7*$G$73 -> 226.35 | C73: =$C$7*$G$73 -> 197.55 | D73: =$D$7*$G$73 -> 139.95 | E73: =$E$7*$G$73 -> 111.15 | F73: è | G73: 0.09
A74: 6th | B74: =$B$7*$G$74 -> 176.05 | C74: =$C$7*$G$74 -> 153.65 | D74: =$D$7*$G$74 -> 108.85 | E74: =$E$7*$G$74 -> 86.45 | F74: è | G74: 0.07
A75: 7th | B75: =$B$7*$G$75 -> 150.9 | C75: =$C$7*$G$75 -> 131.7 | D75: =$D$7*$G$75 -> 93.3 | E75: =$E$7*$G$75 -> 74.1 | F75: è | G75: 0.06
A76: 8th | B76: =$B$7*$G$76 -> 125.75 | C76: =$C$7*$G$76 -> 109.75 | D76: =$D$7*$G$76 -> 77.75 | E76: =$E$7*$G$76 -> 61.75 | F76: è | G76: 0.05
A77: 9th | B77: =$B$7*$G$77 -> 100.6 | C77: =$C$7*$G$77 -> 87.8 | D77: =$D$7*$G$77 -> 62.2 | E77: =$E$7*$G$77 -> 49.4 | F77: è | G77: 0.04
A78: 10th | B78: =$B$7*$G$78 -> 75.45 | C78: =$C$7*$G$78 -> 65.85 | D78: =$D$7*$G$78 -> 46.65 | E78: =$E$7*$G$78 -> 37.05 | F78: è | G78: 0.03
A79: Totals | B79: =SUM(B69:B78) -> 2515 | C79: =SUM(C69:C78) -> 2195 | D79: =SUM(D69:D78) -> 1555 | E79: =SUM(E69:E78) -> 1235 | F79: =B79+C79+D79+E79 -> 7500 | G79: =SUM(G69:G78) -> 1
A81: For 334-500 riders 12 places
A82: Placings | B82: 1D | C82: 2D | D82: 3D | E82: 4D
A83: 1st | B83: =$B$7*$G$83 -> 477.85 | C83: =$C$7*$G$83 -> 417.05 | D83: =$D$7*$G$83 -> 295.45 | E83: =$E$7*$G$83 -> 234.65 | F83: è | G83: 0.19
A84: 2nd | B84: =$B$7*$G$84 -> 377.25 | C84: =$C$7*$G$84 -> 329.25 | D84: =$D$7*$G$84 -> 233.25 | E84: =$E$7*$G$84 -> 185.25 | F84: è | G84: 0.15
A85: 3rd | B85: =$B$7*$G$85 -> 301.8 | C85: =$C$7*$G$85 -> 263.4 | D85: =$D$7*$G$85 -> 186.6 | E85: =$E$7*$G$85 -> 148.2 | F85: è | G85: 0.12
A86: 4th | B86: =$B$7*$G$86 -> 251.5 | C86: =$C$7*$G$86 -> 219.5 | D86: =$D$7*$G$86 -> 155.5 | E86: =$E$7*$G$86 -> 123.5 | F86: è | G86: 0.1
A87: 5th | B87: =$B$7*$G$87 -> 226.35 | C87: =$C$7*$G$87 -> 197.55 | D87: =$D$7*$G$87 -> 139.95 | E87: =$E$7*$G$87 -> 111.15 | F87: è | G87: 0.09
A88: 6th | B88: =$B$7*$G$88 -> 201.2 | C88: =$C$7*$G$88 -> 175.6 | D88: =$D$7*$G$88 -> 124.4 | E88: =$E$7*$G$88 -> 98.8 | F88: è | G88: 0.08
A89: 7th | B89: =$B$7*$G$89 -> 176.05 | C89: =$C$7*$G$89 -> 153.65 | D89: =$D$7*$G$89 -> 108.85 | E89: =$E$7*$G$89 -> 86.45 | F89: è | G89: 0.07
A90: 8th | B90: =$B$7*$G$90 -> 150.9 | C90: =$C$7*$G$90 -> 131.7 | D90: =$D$7*$G$90 -> 93.3 | E90: =$E$7*$G$90 -> 74.1 | F90: è | G90: 0.06
A91: 9th | B91: =$B$7*$G$91 -> 125.75 | C91: =$C$7*$G$91 -> 109.75 | D91: =$D$7*$G$91 -> 77.75 | E91: =$E$7*$G$91 -> 61.75 | F91: è | G91: 0.05
A92: 10th | B92: =$B$7*$G$92 -> 100.6 | C92: =$C$7*$G$92 -> 87.8 | D92: =$D$7*$G$92 -> 62.2 | E92: =$E$7*$G$92 -> 49.4 | F92: è | G92: 0.04
A93: 11th | B93: =$B$7*$G$93 -> 75.45 | C93: =$C$7*$G$93 -> 65.85 | D93: =$D$7*$G$93 -> 46.65 | E93: =$E$7*$G$93 -> 37.05 | F93: è | G93: 0.03
A94: 12th | B94: =$B$7*$G$94 -> 50.3 | C94: =$C$7*$G$94 -> 43.9 | D94: =$D$7*$G$94 -> 31.1 | E94: =$E$7*$G$94 -> 24.7 | F94: è | G94: 0.02
A95: Totals | B95: =SUM(B83:B94) -> 2515 | C95: =SUM(C83:C94) -> 2195 | D95: 1555 | E95: 1235 | F95: =B95+C95+D95+E95 -> 7500 | G95: =SUM(G83:G94) -> 1
A97: For 501-750 riders 15 places
A98: Placings | B98: 1D | C98: 2D | D98: 3D | E98: 4D
A99: 1st | B99: =$B$7*$G$99 -> 452.7 | C99: =$C$7*$G$99 -> 395.1 | D99: =$D$7*$G$99 -> 279.9 | E99: =$E$7*$G$99 -> 222.3 | F99: è | G99: 0.18
A100: 2nd | B100: =$B$7*$G$100 -> 377.25 | C100: =$C$7*$G$100 -> 329.25 | D100: =$D$7*$G$100 -> 233.25 | E100: =$E$7*$G$100 -> 185.25 | F100: è | G100: 0.15
A101: 3rd | B101: =$B$7*$G$101 -> 301.8 | C101: =$C$7*$G$101 -> 263.4 | D101: =$D$7*$G$101 -> 186.6 | E101: =$E$7*$G$101 -> 148.2 | F101: è | G101: 0.12
A102: 4th | B102: =$B$7*$G$102 -> 251.5 | C102: =$C$7*$G$102 -> 219.5 | D102: =$D$7*$G$102 -> 155.5 | E102: =$E$7*$G$102 -> 123.5 | F102: è | G102: 0.1
A103: 5th | B103: =$B$7*$G$103 -> 213.775 | C103: =$C$7*$G$103 -> 186.575 | D103: =$D$7*$G$103 -> 132.175 | E103: =$E$7*$G$103 -> 104.975 | F103: è | G103: 0.085
A104: 6th | B104: =$B$7*$G$104 -> 176.05 | C104: =$C$7*$G$104 -> 153.65 | D104: =$D$7*$G$104 -> 108.85 | E104: =$E$7*$G$104 -> 86.45 | F104: è | G104: 0.07
A105: 7th | B105: =$B$7*$G$105 -> 150.9 | C105: =$C$7*$G$105 -> 131.7 | D105: =$D$7*$G$105 -> 93.3 | E105: =$E$7*$G$105 -> 74.1 | F105: è | G105: 0.06
A106: 8th | B106: =$B$7*$G$106 -> 125.75 | C106: =$C$7*$G$106 -> 109.75 | D106: =$D$7*$G$106 -> 77.75 | E106: =$E$7*$G$106 -> 61.75 | F106: è | G106: 0.05
A107: 9th | B107: =$B$7*$G$107 -> 106.8875 | C107: =$C$7*$G$107 -> 93.2875 | D107: =$D$7*$G$107 -> 66.0875 | E107: =$E$7*$G$107 -> 52.4875 | F107: è | G107: 0.0425
A108: 10th | B108: =$B$7*$G$108 -> 88.025 | C108: =$C$7*$G$108 -> 76.825 | D108: =$D$7*$G$108 -> 54.425 | E108: =$E$7*$G$108 -> 43.225 | F108: è | G108: 0.035
A109: 11th | B109: =$B$7*$G$109 -> 75.45 | C109: =$C$7*$G$109 -> 65.85 | D109: =$D$7*$G$109 -> 46.65 | E109: =$E$7*$G$109 -> 37.05 | F109: è | G109: 0.03
A110: 12th | B110: =$B$7*$G$110 -> 62.875 | C110: =$C$7*$G$110 -> 54.875 | D110: =$D$7*$G$110 -> 38.875 | E110: =$E$7*$G$110 -> 30.875 | F110: è | G110: 0.025
A111: 13th | B111: =$B$7*$G$111 -> 50.3 | C111: =$C$7*$G$111 -> 43.9 | D111: =$D$7*$G$111 -> 31.1 | E111: =$E$7*$G$111 -> 24.7 | F111: è | G111: 0.02
A112: 14th | B112: =$B$7*$G$112 -> 44.0125 | C112: =$C$7*$G$112 -> 38.4125 | D112: =$D$7*$G$112 -> 27.2125 | E112: =$E$7*$G$112 -> 21.6125 | F112: è | G112: 0.0175
A113: 15th | B113: =$B$7*$G$113 -> 37.725 | C113: =$C$7*$G$113 -> 32.925 | D113: =$D$7*$G$113 -> 23.325 | E113: =$E$7*$G$113 -> 18.525 | F113: è | G113: 0.015
A114: Totals | B114: =SUM(B99:B113) -> 2515 | C114: =SUM(C99:C113) -> 2195 | D114: 1555 | E114: 1235 | F114: =B114+C114+D114+E114 -> 7500 | G114: =SUM(G99:G113) -> 1
A116: For 751-1200 riders 20 places
A117: Placings | B117: 1D | C117: 2D | D117: 3D | E117: 4D
A118: 1st | B118: =$B$7*$G$118 -> 352.1 | C118: =$C$7*$G$118 -> 307.3 | D118: =$D$7*$G$118 -> 217.7 | E118: =$E$7*$G$118 -> 172.9 | F118: è | G118: 0.14
A119: 2nd | B119: =$B$7*$G$119 -> 276.65 | C119: =$C$7*$G$119 -> 241.45 | D119: =$D$7*$G$119 -> 171.05 | E119: =$E$7*$G$119 -> 135.85 | F119: è | G119: 0.11
A120: 3rd | B120: =$B$7*$G$120 -> 226.35 | C120: =$C$7*$G$120 -> 197.55 | D120: =$D$7*$G$120 -> 139.95 | E120: =$E$7*$G$120 -> 111.15 | F120: è | G120: 0.09
A121: 4th | B121: =$B$7*$G$121 -> 193.655 | C121: =$C$7*$G$121 -> 169.015 | D121: =$D$7*$G$121 -> 119.735 | E121: =$E$7*$G$121 -> 95.095 | F121: è | G121: 0.077
A122: 5th | B122: =$B$7*$G$122 -> 176.05 | C122: =$C$7*$G$122 -> 153.65 | D122: =$D$7*$G$122 -> 108.85 | E122: =$E$7*$G$122 -> 86.45 | F122: è | G122: 0.07
A123: 6th | B123: =$B$7*$G$123 -> 163.475 | C123: =$C$7*$G$123 -> 142.675 | D123: =$D$7*$G$123 -> 101.075 | E123: =$E$7*$G$123 -> 80.275 | F123: è | G123: 0.065
A124: 7th | B124: =$B$7*$G$124 -> 150.9 | C124: =$C$7*$G$124 -> 131.7 | D124: =$D$7*$G$124 -> 93.3 | E124: =$E$7*$G$124 -> 74.1 | F124: è | G124: 0.06
A125: 8th | B125: =$B$7*$G$125 -> 138.325 | C125: =$C$7*$G$125 -> 120.725 | D125: =$D$7*$G$125 -> 85.525 | E125: =$E$7*$G$125 -> 67.925 | F125: è | G125: 0.055
A126: 9th | B126: =$B$7*$G$126 -> 125.75 | C126: =$C$7*$G$126 -> 109.75 | D126: =$D$7*$G$126 -> 77.75 | E126: =$E$7*$G$126 -> 61.75 | F126: è | G126: 0.05
A127: 10th | B127: =$B$7*$G$127 -> 113.175 | C127: =$C$7*$G$127 -> 98.775 | D127: =$D$7*$G$127 -> 69.975 | E127: =$E$7*$G$127 -> 55.575 | F127: è | G127: 0.045
A128: 11th | B128: =$B$7*$G$128 -> 100.6 | C128: =$C$7*$G$128 -> 87.8 | D128: =$D$7*$G$128 -> 62.2 | E128: =$E$7*$G$128 -> 49.4 | F128: è | G128: 0.04
A129: 12th | B129: =$B$7*$G$129 -> 93.055 | C129: =$C$7*$G$129 -> 81.215 | D129: =$D$7*$G$129 -> 57.535 | E129: =$E$7*$G$129 -> 45.695 | F129: è | G129: 0.037
A130: 13th | B130: =$B$7*$G$130 -> 82.995 | C130: =$C$7*$G$130 -> 72.435 | D130: =$D$7*$G$130 -> 51.315 | E130: =$E$7*$G$130 -> 40.755 | F130: è | G130: 0.033
A131: 14th | B131: =$B$7*$G$131 -> 72.935 | C131: =$C$7*$G$131 -> 63.655 | D131: =$D$7*$G$131 -> 45.095 | E131: =$E$7*$G$131 -> 35.815 | F131: è | G131: 0.029
A132: 15th | B132: =$B$7*$G$132 -> 62.875 | C132: =$C$7*$G$132 -> 54.875 | D132: =$D$7*$G$132 -> 38.875 | E132: =$E$7*$G$132 -> 30.875 | F132: è | G132: 0.025
A133: 16th | B133: =$B$7*$G$133 -> 52.815 | C133: =$C$7*$G$133 -> 46.095 | D133: =$D$7*$G$133 -> 32.655 | E133: =$E$7*$G$133 -> 25.935 | F133: è | G133: 0.021
A134: 17th | B134: =$B$7*$G$134 -> 42.755 | C134: =$C$7*$G$134 -> 37.315 | D134: =$D$7*$G$134 -> 26.435 | E134: =$E$7*$G$134 -> 20.995 | F134: è | G134: 0.017
A135: 18th | B135: =$B$7*$G$135 -> 35.21 | C135: =$C$7*$G$135 -> 30.73 | D135: =$D$7*$G$135 -> 21.77 | E135: =$E$7*$G$135 -> 17.29 | F135: è | G135: 0.014
A136: 19th | B136: =$B$7*$G$136 -> 30.18 | C136: =$C$7*$G$136 -> 26.34 | D136: =$D$7*$G$136 -> 18.66 | E136: =$E$7*$G$136 -> 14.82 | F136: è | G136: 0.012
A137: 20th | B137: =$B$7*$G$137 -> 25.15 | C137: =$C$7*$G$137 -> 21.95 | D137: =$D$7*$G$137 -> 15.55 | E137: =$E$7*$G$137 -> 12.35 | F137: è | G137: 0.01
A138: Totals | B138: =SUM(B118:B137) -> 2515 | C138: =SUM(C118:C137) -> 2195 | D138: 1555 | E138: 1235 | F138: =B138+C138+D138+E138 -> 7500 | G138: =SUM(G118:G137) -> 1
A140: For 1201 or More riders 30 places
A141: Placings | B141: 1D | C141: 2D | D141: 3D | E141: 4D
A142: 1st | B142: =$B$7*$G$142 -> 301.8 | C142: =$C$7*$G$142 -> 263.4 | D142: =$D$7*$G$142 -> 186.6 | E142: =$E$7*$G$142 -> 148.2 | F142: è | G142: 0.12
A143: 2nd | B143: =$B$7*$G$143 -> 238.925 | C143: =$C$7*$G$143 -> 208.525 | D143: =$D$7*$G$143 -> 147.725 | E143: =$E$7*$G$143 -> 117.325 | F143: è | G143: 0.095
A144: 3rd | B144: =$B$7*$G$144 -> 183.595 | C144: =$C$7*$G$144 -> 160.235 | D144: =$D$7*$G$144 -> 113.515 | E144: =$E$7*$G$144 -> 90.155 | F144: è | G144: 0.073
A145: 4th | B145: =$B$7*$G$145 -> 155.93 | C145: =$C$7*$G$145 -> 136.09 | D145: =$D$7*$G$145 -> 96.41 | E145: =$E$7*$G$145 -> 76.57 | F145: è | G145: 0.062
A146: 5th | B146: =$B$7*$G$146 -> 125.75 | C146: =$C$7*$G$146 -> 109.75 | D146: =$D$7*$G$146 -> 77.75 | E146: =$E$7*$G$146 -> 61.75 | F146: è | G146: 0.05
A147: 6th | B147: =$B$7*$G$147 -> 113.175 | C147: =$C$7*$G$147 -> 98.775 | D147: =$D$7*$G$147 -> 69.975 | E147: =$E$7*$G$147 -> 55.575 | F147: è | G147: 0.045
A148: 7th | B148: =$B$7*$G$148 -> 108.145 | C148: =$C$7*$G$148 -> 94.385 | D148: =$D$7*$G$148 -> 66.865 | E148: =$E$7*$G$148 -> 53.105 | F148: è | G148: 0.043
A149: 8th | B149: =$B$7*$G$149 -> 100.6 | C149: =$C$7*$G$149 -> 87.8 | D149: =$D$7*$G$149 -> 62.2 | E149: =$E$7*$G$149 -> 49.4 | F149: è | G149: 0.04
A150: 9th | B150: =$B$7*$G$150 -> 93.055 | C150: =$C$7*$G$150 -> 81.215 | D150: =$D$7*$G$150 -> 57.535 | E150: =$E$7*$G$150 -> 45.695 | F150: è | G150: 0.037
A151: 10th | B151: =$B$7*$G$151 -> 88.025 | C151: =$C$7*$G$151 -> 76.825 | D151: =$D$7*$G$151 -> 54.425 | E151: =$E$7*$G$151 -> 43.225 | F151: è | G151: 0.035
A152: 11th | B152: =$B$7*$G$152 -> 82.995 | C152: =$C$7*$G$152 -> 72.435 | D152: =$D$7*$G$152 -> 51.315 | E152: =$E$7*$G$152 -> 40.755 | F152: è | G152: 0.033
A153: 12th | B153: =$B$7*$G$153 -> 77.965 | C153: =$C$7*$G$153 -> 68.045 | D153: =$D$7*$G$153 -> 48.205 | E153: =$E$7*$G$153 -> 38.285 | F153: è | G153: 0.031
A154: 13th | B154: =$B$7*$G$154 -> 72.935 | C154: =$C$7*$G$154 -> 63.655 | D154: =$D$7*$G$154 -> 45.095 | E154: =$E$7*$G$154 -> 35.815 | F154: è | G154: 0.029
A155: 14th | B155: =$B$7*$G$155 -> 67.905 | C155: =$C$7*$G$155 -> 59.265 | D155: =$D$7*$G$155 -> 41.985 | E155: =$E$7*$G$155 -> 33.345 | F155: è | G155: 0.027
A156: 15th | B156: =$B$7*$G$156 -> 62.875 | C156: =$C$7*$G$156 -> 54.875 | D156: =$D$7*$G$156 -> 38.875 | E156: =$E$7*$G$156 -> 30.875 | F156: è | G156: 0.025
A157: 16th | B157: =$B$7*$G$157 -> 60.36 | C157: =$C$7*$G$157 -> 52.68 | D157: =$D$7*$G$157 -> 37.32 | E157: =$E$7*$G$157 -> 29.64 | F157: è | G157: 0.024
A158: 17th | B158: =$B$7*$G$158 -> 57.845 | C158: =$C$7*$G$158 -> 50.485 | D158: =$D$7*$G$158 -> 35.765 | E158: =$E$7*$G$158 -> 28.405 | F158: è | G158: 0.023
A159: 18th | B159: =$B$7*$G$159 -> 55.33 | C159: =$C$7*$G$159 -> 48.29 | D159: =$D$7*$G$159 -> 34.21 | E159: =$E$7*$G$159 -> 27.17 | F159: è | G159: 0.022
A160: 19th | B160: =$B$7*$G$160 -> 52.815 | C160: =$C$7*$G$160 -> 46.095 | D160: =$D$7*$G$160 -> 32.655 | E160: =$E$7*$G$160 -> 25.935 | F160: è | G160: 0.021
A161: 20th | B161: =$B$7*$G$161 -> 50.3 | C161: =$C$7*$G$161 -> 43.9 | D161: =$D$7*$G$161 -> 31.1 | E161: =$E$7*$G$161 -> 24.7 | F161: è | G161: 0.02
A162: 21st | B162: =$B$7*$G$162 -> 47.785 | C162: =$C$7*$G$162 -> 41.705 | D162: =$D$7*$G$162 -> 29.545 | E162: =$E$7*$G$162 -> 23.465 | F162: è | G162: 0.019
A163: 22nd | B163: =$B$7*$G$163 -> 45.27 | C163: =$C$7*$G$163 -> 39.51 | D163: =$D$7*$G$163 -> 27.99 | E163: =$E$7*$G$163 -> 22.23 | F163: è | G163: 0.018
A164: 23rd | B164: =$B$7*$G$164 -> 42.755 | C164: =$C$7*$G$164 -> 37.315 | D164: =$D$7*$G$164 -> 26.435 | E164: =$E$7*$G$164 -> 20.995 | F164: è | G164: 0.017
A165: 24th | B165: =$B$7*$G$165 -> 40.24 | C165: =$C$7*$G$165 -> 35.12 | D165: =$D$7*$G$165 -> 24.88 | E165: =$E$7*$G$165 -> 19.76 | F165: è | G165: 0.016
A166: 25th | B166: =$B$7*$G$166 -> 37.725 | C166: =$C$7*$G$166 -> 32.925 | D166: =$D$7*$G$166 -> 23.325 | E166: =$E$7*$G$166 -> 18.525 | F166: è | G166: 0.015
A167: 26th | B167: =$B$7*$G$167 -> 35.21 | C167: =$C$7*$G$167 -> 30.73 | D167: =$D$7*$G$167 -> 21.77 | E167: =$E$7*$G$167 -> 17.29 | F167: è | G167: 0.014
A168: 27th | B168: =$B$7*$G$168 -> 32.695 | C168: =$C$7*$G$168 -> 28.535 | D168: =$D$7*$G$168 -> 20.215 | E168: =$E$7*$G$168 -> 16.055 | F168: è | G168: 0.013
A169: 28th | B169: =$B$7*$G$169 -> 30.18 | C169: =$C$7*$G$169 -> 26.34 | D169: =$D$7*$G$169 -> 18.66 | E169: =$E$7*$G$169 -> 14.82 | F169: è | G169: 0.012
A170: 29th | B170: =$B$7*$G$170 -> 27.665 | C170: =$C$7*$G$170 -> 24.145 | D170: =$D$7*$G$170 -> 17.105 | E170: =$E$7*$G$170 -> 13.585 | F170: è | G170: 0.011
A171: 30th | B171: =$B$7*$G$171 -> 25.15 | C171: =$C$7*$G$171 -> 21.95 | D171: =$D$7*$G$171 -> 15.55 | E171: =$E$7*$G$171 -> 12.35 | F171: è | G171: 0.01
A172: Totals | B172: =SUM(B142:B171) -> 2515 | C172: =SUM(C142:C171) -> 2195 | D172: =SUM(D142:D171) -> 1555 | E172: =SUM(E142:E171) -> 1235 | F172: =B172+C172+D172+E172 -> 7500 | G172: =SUM(G142:G171) -> 1

Sheet 5D Payout BBR
A1: 5D Payout BBR
A2: Entry Fee | B2: # Entries | C2: % Payback | D2: $ From Entry | E2: Added $ | F2: Total Payout | G2: Total $ Held
A3: 100 | B3: 7 | C3: 0.8 | D3: =$A$3*$C$3*$B$3 -> 560 | F3: =($A$3*$C$3)*$B$3+$E$3 -> 560 | G3: =$A$3*(100%-$C$3)*$B$3 -> 140
A5: % in each D | B5: 0.3 | C5: 0.25 | D5: 0.2 | E5: 0.15 | F5: 0.1 | G5: Total % Payout | H5: =SUM(B5:F5) -> 1
B6: 1D | C6: 2D | D6: 3D | E6: 4D | F6: 5D
B7: =(($A$3*$B$3*$C$3*$B$5)+($E$3*$B$5)) -> 168 | C7: =(($A$3*$B$3*$C$3*$C$5)+($E$3*$C$5)) -> 140 | D7: =(($A$3*$B$3*$C$3*$D$5)+($E$3*$D$5)) -> 112 | E7: =(($A$3*$B$3*$C$3*$E$5)+($E$3*$E$5)) -> 84 | F7: =(($A$3*$B$3*$C$3*$F$5)+($E$3*$F$5)) -> 56
A8: Totals | B8: =SUM(B7) -> 168 | C8: =SUM(C7) -> 140 | D8: 112 | E8: 84 | F8: 56 | G8: =SUM(B8:F8) -> 560
A10: For 1-25 riders 1 place
A11: Placings | B11: 1D | C11: 2D | D11: 3D | E11: 4D | F11: 5D
A12: 1st | B12: =$B$7*$H$12 -> 168 | C12: =$C$7*$H$12 -> 140 | D12: =$D$7*$H$12 -> 112 | E12: =$E$7*$H$12 -> 84 | F12: =$F$7*$H$12 -> 56 | G12: è | H12: 1
A13: Totals | B13: =SUM(B12:B12) -> 168 | C13: =SUM(C12:C12) -> 140 | D13: =SUM(D12:D12) -> 112 | E13: =SUM(E12:E12) -> 84 | F13: =SUM(F12) -> 56 | G13: =SUM(B13:F13) -> 560 | H13: =SUM(H12) -> 1
A15: For 26-50 riders 2 places
A16: Placings | B16: 1D | C16: 2D | D16: 3D | E16: 4D | F16: 5D
A17: 1st | B17: =$B$7*$H$17 -> 100.8 | C17: =$C$7*$H$17 -> 84 | D17: =$D$7*$H$17 -> 67.2 | E17: =$E$7*$H$17 -> 50.4 | F17: =$F$7*$H$17 -> 33.6 | G17: è | H17: 0.6
A18: 2nd | B18: =$B$7*$H$18 -> 67.2 | C18: =$C$7*$H$18 -> 56 | D18: =$D$7*$H$18 -> 44.8 | E18: =$E$7*$H$18 -> 33.6 | F18: =$F$7*$H$18 -> 22.4 | G18: è | H18: 0.4
A19: Totals | B19: =SUM(B17:B18) -> 168 | C19: =SUM(C17:C18) -> 140 | D19: =SUM(D17:D18) -> 112 | E19: =SUM(E17:E18) -> 84 | F19: =SUM(F17:F18) -> 56 | G19: =SUM(B19:F19) -> 560 | H19: =SUM(H17:H18) -> 1
A21: For 51-100 riders 3 places
A22: Placings | B22: 1D | C22: 2D | D22: 3D | E22: 4D | F22: 5D
A23: 1st | B23: =$B$7*$H$23 -> 84 | C23: =$C$7*$H$23 -> 70 | D23: =$D$7*$H$23 -> 56 | E23: =$E$7*$H$23 -> 42 | F23: =$F$7*$H$23 -> 28 | G23: è | H23: 0.5
A24: 2nd | B24: =$B$7*$H$24 -> 50.4 | C24: =$C$7*$H$24 -> 42 | D24: =$D$7*$H$24 -> 33.6 | E24: =$E$7*$H$24 -> 25.2 | F24: =$F$7*$H$24 -> 16.8 | G24: è | H24: 0.3
A25: 3rd | B25: =$B$7*$H$25 -> 33.6 | C25: =$C$7*$H$25 -> 28 | D25: =$D$7*$H$25 -> 22.4 | E25: =$E$7*$H$25 -> 16.8 | F25: =$F$7*$H$25 -> 11.2 | G25: è | H25: 0.2
A26: Totals | B26: =SUM(B23:B25) -> 168 | C26: =SUM(C23:C25) -> 140 | D26: =SUM(D23:D25) -> 112 | E26: =SUM(E23:E25) -> 84 | F26: =SUM(F23:F25) -> 56 | G26: =SUM(B26:F26) -> 560 | H26: =SUM(H23:H25) -> 1
A28: For 101-143 riders 4 places
A29: Placings | B29: 1D | C29: 2D | D29: 3D | E29: 4D | F29: 5D
A30: 1st | B30: =$B$7*$H$30 -> 67.2 | C30: =$C$7*$H$30 -> 56 | D30: =$D$7*$H$30 -> 44.8 | E30: =$E$7*$H$30 -> 33.6 | F30: =$F$7*$H$30 -> 22.4 | G30: è | H30: 0.4
A31: 2nd | B31: =$B$7*$H$31 -> 50.4 | C31: =$C$7*$H$31 -> 42 | D31: =$D$7*$H$31 -> 33.6 | E31: =$E$7*$H$31 -> 25.2 | F31: =$F$7*$H$31 -> 16.8 | G31: è | H31: 0.3
A32: 3rd | B32: =$B$7*$H$32 -> 33.6 | C32: =$C$7*$H$32 -> 28 | D32: =$D$7*$H$32 -> 22.4 | E32: =$E$7*$H$32 -> 16.8 | F32: =$F$7*$H$32 -> 11.2 | G32: è | H32: 0.2
A33: 4th | B33: =$B$7*$H$33 -> 16.8 | C33: =$C$7*$H$33 -> 14 | D33: =$D$7*$H$33 -> 11.2 | E33: =$E$7*$H$33 -> 8.4 | F33: =$F$7*$H$33 -> 5.6 | G33: è | H33: 0.1
A34: Totals | B34: =SUM(B30:B33) -> 168 | C34: =SUM(C30:C33) -> 140 | D34: =SUM(D30:D33) -> 112 | E34: =SUM(E30:E33) -> 84 | F34: =SUM(F30:F33) -> 56 | G34: =SUM(B34:F34) -> 560 | H34: =SUM(H30:H33) -> 1
A36: For 144-200 riders 5 places
A37: Placings | B37: 1D | C37: 2D | D37: 3D | E37: 4D | F37: 5D
A38: 1st | B38: =$B$7*$H$38 -> 55.44 | C38: =$C$7*$H$38 -> 46.2 | D38: =$D$7*$H$38 -> 36.96 | E38: =$E$7*$H$38 -> 27.72 | F38: =$F$7*$H$38 -> 18.48 | G38: è | H38: 0.33
A39: 2nd | B39: =$B$7*$H$39 -> 45.36 | C39: =$C$7*$H$39 -> 37.8 | D39: =$D$7*$H$39 -> 30.24 | E39: =$E$7*$H$39 -> 22.68 | F39: =$F$7*$H$39 -> 15.12 | G39: è | H39: 0.27
A40: 3rd | B40: =$B$7*$H$40 -> 33.6 | C40: =$C$7*$H$40 -> 28 | D40: =$D$7*$H$40 -> 22.4 | E40: =$E$7*$H$40 -> 16.8 | F40: =$F$7*$H$40 -> 11.2 | G40: è | H40: 0.2
A41: 4th | B41: =$B$7*$H$41 -> 21.84 | C41: =$C$7*$H$41 -> 18.2 | D41: =$D$7*$H$41 -> 14.56 | E41: =$E$7*$H$41 -> 10.92 | F41: =$F$7*$H$41 -> 7.28 | G41: è | H41: 0.13
A42: 5th | B42: =$B$7*$H$42 -> 11.76 | C42: =$C$7*$H$42 -> 9.8 | D42: =$D$7*$H$42 -> 7.84 | E42: =$E$7*$H$42 -> 5.88 | F42: =$F$7*$H$42 -> 3.92 | G42: è | H42: 0.07
A43: Totals | B43: =SUM(B38:B42) -> 168 | C43: =SUM(C38:C42) -> 140 | D43: =SUM(D38:D42) -> 112 | E43: =SUM(E38:E42) -> 84 | F43: =SUM(F38:F42) -> 56 | G43: =SUM(B43:F43) -> 560 | H43: =SUM(H38:H42) -> 1
A45: For 201-250 riders 6 places
A46: Placings | B46: 1D | C46: 2D | D46: 3D | E46: 4D | F46: 5D
A47: 1st | B47: =$B$7*$H$47 -> 48.72 | C47: =$C$7*$H$47 -> 40.6 | D47: =$D$7*$H$47 -> 32.48 | E47: =$E$7*$H$47 -> 24.36 | F47: =$F$7*$H$47 -> 16.24 | G47: è | H47: 0.29
A48: 2nd | B48: =$B$7*$H$48 -> 40.32 | C48: =$C$7*$H$48 -> 33.6 | D48: =$D$7*$H$48 -> 26.88 | E48: =$E$7*$H$48 -> 20.16 | F48: =$F$7*$H$48 -> 13.44 | G48: è | H48: 0.24
A49: 3rd | B49: =$B$7*$H$49 -> 31.92 | C49: =$C$7*$H$49 -> 26.6 | D49: =$D$7*$H$49 -> 21.28 | E49: =$E$7*$H$49 -> 15.96 | F49: =$F$7*$H$49 -> 10.64 | G49: è | H49: 0.19
A50: 4th | B50: =$B$7*$H$50 -> 23.52 | C50: =$C$7*$H$50 -> 19.6 | D50: =$D$7*$H$50 -> 15.68 | E50: =$E$7*$H$50 -> 11.76 | F50: =$F$7*$H$50 -> 7.84 | G50: è | H50: 0.14
A51: 5th | B51: =$B$7*$H$51 -> 15.12 | C51: =$C$7*$H$51 -> 12.6 | D51: =$D$7*$H$51 -> 10.08 | E51: =$E$7*$H$51 -> 7.56 | F51: =$F$7*$H$51 -> 5.04 | G51: è | H51: 0.09
A52: 6th | B52: =$B$7*$H$52 -> 8.4 | C52: =$C$7*$H$52 -> 7 | D52: =$D$7*$H$52 -> 5.6 | E52: =$E$7*$H$52 -> 4.2 | F52: =$F$7*$H$52 -> 2.8 | G52: è | H52: 0.05
A53: Totals | B53: =SUM(B47:B52) -> 168 | C53: =SUM(C47:C52) -> 140 | D53: =SUM(D47:D52) -> 112 | E53: =SUM(E47:E52) -> 84 | F53: =SUM(F47:F52) -> 56 | G53: =SUM(B53:F53) -> 560 | H53: =SUM(H47:H52) -> 1
A55: For 251-333 riders 8 places
A56: Placings | B56: 1D | C56: 2D | D56: 3D | E56: 4D | F56: 5D
A57: 1st | B57: =$B$7*$H$57 -> 40.32 | C57: =$C$7*$H$57 -> 33.6 | D57: =$D$7*$H$57 -> 26.88 | E57: =$E$7*$H$57 -> 20.16 | F57: =$F$7*$H$57 -> 13.44 | G57: è | H57: 0.24
A58: 2nd | B58: =$B$7*$H$58 -> 33.6 | C58: =$C$7*$H$58 -> 28 | D58: =$D$7*$H$58 -> 22.4 | E58: =$E$7*$H$58 -> 16.8 | F58: =$F$7*$H$58 -> 11.2 | G58: è | H58: 0.2
A59: 3rd | B59: =$B$7*$H$59 -> 28.56 | C59: =$C$7*$H$59 -> 23.8 | D59: =$D$7*$H$59 -> 19.04 | E59: =$E$7*$H$59 -> 14.28 | F59: =$F$7*$H$59 -> 9.52 | G59: è | H59: 0.17
A60: 4th | B60: =$B$7*$H$60 -> 21.84 | C60: =$C$7*$H$60 -> 18.2 | D60: =$D$7*$H$60 -> 14.56 | E60: =$E$7*$H$60 -> 10.92 | F60: =$F$7*$H$60 -> 7.28 | G60: è | H60: 0.13
A61: 5th | B61: =$B$7*$H$61 -> 16.8 | C61: =$C$7*$H$61 -> 14 | D61: =$D$7*$H$61 -> 11.2 | E61: =$E$7*$H$61 -> 8.4 | F61: =$F$7*$H$61 -> 5.6 | G61: è | H61: 0.1
A62: 6th | B62: =$B$7*$H$62 -> 11.76 | C62: =$C$7*$H$62 -> 9.8 | D62: =$D$7*$H$62 -> 7.84 | E62: =$E$7*$H$62 -> 5.88 | F62: =$F$7*$H$62 -> 3.92 | G62: è | H62: 0.07
A63: 7th | B63: =$B$7*$H$63 -> 8.4 | C63: =$C$7*$H$63 -> 7 | D63: =$D$7*$H$63 -> 5.6 | E63: =$E$7*$H$63 -> 4.2 | F63: =$F$7*$H$63 -> 2.8 | G63: è | H63: 0.05
A64: 8th | B64: =$B$7*$H$64 -> 6.72 | C64: =$C$7*$H$64 -> 5.6 | D64: =$D$7*$H$64 -> 4.48 | E64: =$E$7*$H$64 -> 3.36 | F64: =$F$7*$H$64 -> 2.24 | G64: è | H64: 0.04
A65: Totals | B65: =SUM(B57:B64) -> 168 | C65: =SUM(C57:C64) -> 140 | D65: =SUM(D57:D64) -> 112 | E65: =SUM(E57:E64) -> 84 | F65: =SUM(F57:F64) -> 56 | G65: =SUM(B65:F65) -> 560 | H65: =SUM(H57:H64) -> 1
A67: For 334-500 riders 10 places
A68: Placings | B68: 1D | C68: 2D | D68: 3D | E68: 4D | F68: 5D
A69: 1st | B69: =$B$7*$H$69 -> 35.28 | C69: =$C$7*$H$69 -> 29.4 | D69: =$D$7*$H$69 -> 23.52 | E69: =$E$7*$H$69 -> 17.64 | F69: =$F$7*$H$69 -> 11.76 | G69: è | H69: 0.21
A70: 2nd | B70: =$B$7*$H$70 -> 30.24 | C70: =$C$7*$H$70 -> 25.2 | D70: =$D$7*$H$70 -> 20.16 | E70: =$E$7*$H$70 -> 15.12 | F70: =$F$7*$H$70 -> 10.08 | G70: è | H70: 0.18
A71: 3rd | B71: =$B$7*$H$71 -> 25.2 | C71: =$C$7*$H$71 -> 21 | D71: =$D$7*$H$71 -> 16.8 | E71: =$E$7*$H$71 -> 12.6 | F71: =$F$7*$H$71 -> 8.4 | G71: è | H71: 0.15
A72: 4th | B72: =$B$7*$H$72 -> 20.16 | C72: =$C$7*$H$72 -> 16.8 | D72: =$D$7*$H$72 -> 13.44 | E72: =$E$7*$H$72 -> 10.08 | F72: =$F$7*$H$72 -> 6.72 | G72: è | H72: 0.12
A73: 5th | B73: =$B$7*$H$73 -> 15.12 | C73: =$C$7*$H$73 -> 12.6 | D73: =$D$7*$H$73 -> 10.08 | E73: =$E$7*$H$73 -> 7.56 | F73: =$F$7*$H$73 -> 5.04 | G73: è | H73: 0.09
A74: 6th | B74: =$B$7*$H$74 -> 11.76 | C74: =$C$7*$H$74 -> 9.8 | D74: =$D$7*$H$74 -> 7.84 | E74: =$E$7*$H$74 -> 5.88 | F74: =$F$7*$H$74 -> 3.92 | G74: è | H74: 0.07
A75: 7th | B75: =$B$7*$H$75 -> 10.08 | C75: =$C$7*$H$75 -> 8.4 | D75: =$D$7*$H$75 -> 6.72 | E75: =$E$7*$H$75 -> 5.04 | F75: =$F$7*$H$75 -> 3.36 | G75: è | H75: 0.06
A76: 8th | B76: =$B$7*$H$76 -> 8.4 | C76: =$C$7*$H$76 -> 7 | D76: =$D$7*$H$76 -> 5.6 | E76: =$E$7*$H$76 -> 4.2 | F76: =$F$7*$H$76 -> 2.8 | G76: è | H76: 0.05
A77: 9th | B77: =$B$7*$H$77 -> 6.72 | C77: =$C$7*$H$77 -> 5.6 | D77: =$D$7*$H$77 -> 4.48 | E77: =$E$7*$H$77 -> 3.36 | F77: =$F$7*$H$77 -> 2.24 | G77: è | H77: 0.04
A78: 10th | B78: =$B$7*$H$78 -> 5.04 | C78: =$C$7*$H$78 -> 4.2 | D78: =$D$7*$H$78 -> 3.36 | E78: =$E$7*$H$78 -> 2.52 | F78: =$F$7*$H$78 -> 1.68 | G78: è | H78: 0.03
A79: Totals | B79: =SUM(B69:B78) -> 168 | C79: =SUM(C69:C78) -> 140 | D79: 112 | E79: 84 | F79: 56 | G79: =SUM(B79:F79) -> 560 | H79: =SUM(H69:H78) -> 1
A81: For 501-666 riders 12 places
A82: Placings | B82: 1D | C82: 2D | D82: 3D | E82: 4D | F82: 5D
A83: 1st | B83: =$B$7*$H$83 -> 31.92 | C83: =$C$7*$H$83 -> 26.6 | D83: =$D$7*$H$83 -> 21.28 | E83: =$E$7*$H$83 -> 15.96 | F83: =$F$7*$H$83 -> 10.64 | G83: è | H83: 0.19
A84: 2nd | B84: =$B$7*$H$84 -> 25.2 | C84: =$C$7*$H$84 -> 21 | D84: =$D$7*$H$84 -> 16.8 | E84: =$E$7*$H$84 -> 12.6 | F84: =$F$7*$H$84 -> 8.4 | G84: è | H84: 0.15
A85: 3rd | B85: =$B$7*$H$85 -> 20.16 | C85: =$C$7*$H$85 -> 16.8 | D85: =$D$7*$H$85 -> 13.44 | E85: =$E$7*$H$85 -> 10.08 | F85: =$F$7*$H$85 -> 6.72 | G85: è | H85: 0.12
A86: 4th | B86: =$B$7*$H$86 -> 16.8 | C86: =$C$7*$H$86 -> 14 | D86: =$D$7*$H$86 -> 11.2 | E86: =$E$7*$H$86 -> 8.4 | F86: =$F$7*$H$86 -> 5.6 | G86: è | H86: 0.1
A87: 5th | B87: =$B$7*$H$87 -> 15.12 | C87: =$C$7*$H$87 -> 12.6 | D87: =$D$7*$H$87 -> 10.08 | E87: =$E$7*$H$87 -> 7.56 | F87: =$F$7*$H$87 -> 5.04 | G87: è | H87: 0.09
A88: 6th | B88: =$B$7*$H$88 -> 13.44 | C88: =$C$7*$H$88 -> 11.2 | D88: =$D$7*$H$88 -> 8.96 | E88: =$E$7*$H$88 -> 6.72 | F88: =$F$7*$H$88 -> 4.48 | G88: è | H88: 0.08
A89: 7th | B89: =$B$7*$H$89 -> 11.76 | C89: =$C$7*$H$89 -> 9.8 | D89: =$D$7*$H$89 -> 7.84 | E89: =$E$7*$H$89 -> 5.88 | F89: =$F$7*$H$89 -> 3.92 | G89: è | H89: 0.07
A90: 8th | B90: =$B$7*$H$90 -> 10.08 | C90: =$C$7*$H$90 -> 8.4 | D90: =$D$7*$H$90 -> 6.72 | E90: =$E$7*$H$90 -> 5.04 | F90: =$F$7*$H$90 -> 3.36 | G90: è | H90: 0.06
A91: 9th | B91: =$B$7*$H$91 -> 8.4 | C91: =$C$7*$H$91 -> 7 | D91: =$D$7*$H$91 -> 5.6 | E91: =$E$7*$H$91 -> 4.2 | F91: =$F$7*$H$91 -> 2.8 | G91: è | H91: 0.05
A92: 10th | B92: =$B$7*$H$92 -> 6.72 | C92: =$C$7*$H$92 -> 5.6 | D92: =$D$7*$H$92 -> 4.48 | E92: =$E$7*$H$92 -> 3.36 | F92: =$F$7*$H$92 -> 2.24 | G92: è | H92: 0.04
A93: 11th | B93: =$B$7*$H$93 -> 5.04 | C93: =$C$7*$H$93 -> 4.2 | D93: =$D$7*$H$93 -> 3.36 | E93: =$E$7*$H$93 -> 2.52 | F93: =$F$7*$H$93 -> 1.68 | G93: è | H93: 0.03
A94: 12th | B94: =$B$7*$H$94 -> 3.36 | C94: =$C$7*$H$94 -> 2.8 | D94: =$D$7*$H$94 -> 2.24 | E94: =$E$7*$H$94 -> 1.68 | F94: =$F$7*$H$94 -> 1.12 | G94: è | H94: 0.02
A95: Totals | B95: =SUM(B83:B94) -> 168 | C95: =SUM(C83:C94) -> 140 | D95: =SUM(D83:D94) -> 112 | E95: =SUM(E83:E94) -> 84 | F95: =SUM(F83:F94) -> 56 | G95: =SUM(B95:F95) -> 560 | H95: =SUM(H83:H94) -> 1
A97: For 667-1000 riders 15 places
A98: Placings | B98: 1D | C98: 2D | D98: 3D | E98: 4D | F98: 5D
A99: 1st | B99: =$B$7*$H$99 -> 30.24 | C99: =$C$7*$H$99 -> 25.2 | D99: =$D$7*$H$99 -> 20.16 | E99: =$E$7*$H$99 -> 15.12 | F99: =$F$7*$H$99 -> 10.08 | G99: è | H99: 0.18
A100: 2nd | B100: =$B$7*$H$100 -> 25.2 | C100: =$C$7*$H$100 -> 21 | D100: =$D$7*$H$100 -> 16.8 | E100: =$E$7*$H$100 -> 12.6 | F100: =$F$7*$H$100 -> 8.4 | G100: è | H100: 0.15
A101: 3rd | B101: =$B$7*$H$101 -> 20.16 | C101: =$C$7*$H$101 -> 16.8 | D101: =$D$7*$H$101 -> 13.44 | E101: =$E$7*$H$101 -> 10.08 | F101: =$F$7*$H$101 -> 6.72 | G101: è | H101: 0.12
A102: 4th | B102: =$B$7*$H$102 -> 16.8 | C102: =$C$7*$H$102 -> 14 | D102: =$D$7*$H$102 -> 11.2 | E102: =$E$7*$H$102 -> 8.4 | F102: =$F$7*$H$102 -> 5.6 | G102: è | H102: 0.1
A103: 5th | B103: =$B$7*$H$103 -> 14.28 | C103: =$C$7*$H$103 -> 11.9 | D103: =$D$7*$H$103 -> 9.52 | E103: =$E$7*$H$103 -> 7.14 | F103: =$F$7*$H$103 -> 4.76 | G103: è | H103: 0.085
A104: 6th | B104: =$B$7*$H$104 -> 11.76 | C104: =$C$7*$H$104 -> 9.8 | D104: =$D$7*$H$104 -> 7.84 | E104: =$E$7*$H$104 -> 5.88 | F104: =$F$7*$H$104 -> 3.92 | G104: è | H104: 0.07
A105: 7th | B105: =$B$7*$H$105 -> 10.08 | C105: =$C$7*$H$105 -> 8.4 | D105: =$D$7*$H$105 -> 6.72 | E105: =$E$7*$H$105 -> 5.04 | F105: =$F$7*$H$105 -> 3.36 | G105: è | H105: 0.06
A106: 8th | B106: =$B$7*$H$106 -> 8.4 | C106: =$C$7*$H$106 -> 7 | D106: =$D$7*$H$106 -> 5.6 | E106: =$E$7*$H$106 -> 4.2 | F106: =$F$7*$H$106 -> 2.8 | G106: è | H106: 0.05
A107: 9th | B107: =$B$7*$H$107 -> 7.14 | C107: =$C$7*$H$107 -> 5.95 | D107: =$D$7*$H$107 -> 4.76 | E107: =$E$7*$H$107 -> 3.57 | F107: =$F$7*$H$107 -> 2.38 | G107: è | H107: 0.0425
A108: 10th | B108: =$B$7*$H$108 -> 5.88 | C108: =$C$7*$H$108 -> 4.9 | D108: =$D$7*$H$108 -> 3.92 | E108: =$E$7*$H$108 -> 2.94 | F108: =$F$7*$H$108 -> 1.96 | G108: è | H108: 0.035
A109: 11th | B109: =$B$7*$H$109 -> 5.04 | C109: =$C$7*$H$109 -> 4.2 | D109: =$D$7*$H$109 -> 3.36 | E109: =$E$7*$H$109 -> 2.52 | F109: =$F$7*$H$109 -> 1.68 | G109: è | H109: 0.03
A110: 12th | B110: =$B$7*$H$110 -> 4.2 | C110: =$C$7*$H$110 -> 3.5 | D110: =$D$7*$H$110 -> 2.8 | E110: =$E$7*$H$110 -> 2.1 | F110: =$F$7*$H$110 -> 1.4 | G110: è | H110: 0.025
A111: 13th | B111: =$B$7*$H$111 -> 3.36 | C111: =$C$7*$H$111 -> 2.8 | D111: =$D$7*$H$111 -> 2.24 | E111: =$E$7*$H$111 -> 1.68 | F111: =$F$7*$H$111 -> 1.12 | G111: è | H111: 0.02
A112: 14th | B112: =$B$7*$H$112 -> 2.94 | C112: =$C$7*$H$112 -> 2.45 | D112: =$D$7*$H$112 -> 1.96 | E112: =$E$7*$H$112 -> 1.47 | F112: =$F$7*$H$112 -> 0.98 | G112: è | H112: 0.0175
A113: 15th | B113: =$B$7*$H$113 -> 2.52 | C113: =$C$7*$H$113 -> 2.1 | D113: =$D$7*$H$113 -> 1.68 | E113: =$E$7*$H$113 -> 1.26 | F113: =$F$7*$H$113 -> 0.84 | G113: è | H113: 0.015
A114: Totals | B114: =SUM(B99:B113) -> 168 | C114: =SUM(C99:C113) -> 140 | D114: =SUM(D99:D113) -> 112 | E114: =SUM(E99:E113) -> 84 | F114: =SUM(F99:F113) -> 56 | G114: =SUM(B114:F114) -> 560 | H114: =SUM(H99:H113) -> 1
A116: For 1001-1500 riders 20 places
A117: Placings | B117: 1D | C117: 2D | D117: 3D | E117: 4D | F117: 5D
A118: 1st | B118: =$B$7*$H$118 -> 23.52 | C118: =$C$7*$H$118 -> 19.6 | D118: =$D$7*$H$118 -> 15.68 | E118: =$E$7*$H$118 -> 11.76 | F118: =$F$7*$H$118 -> 7.84 | G118: è | H118: 0.14
A119: 2nd | B119: =$B$7*$H$119 -> 18.48 | C119: =$C$7*$H$119 -> 15.4 | D119: =$D$7*$H$119 -> 12.32 | E119: =$E$7*$H$119 -> 9.24 | F119: =$F$7*$H$119 -> 6.16 | G119: è | H119: 0.11
A120: 3rd | B120: =$B$7*$H$120 -> 15.12 | C120: =$C$7*$H$120 -> 12.6 | D120: =$D$7*$H$120 -> 10.08 | E120: =$E$7*$H$120 -> 7.56 | F120: =$F$7*$H$120 -> 5.04 | G120: è | H120: 0.09
A121: 4th | B121: =$B$7*$H$121 -> 12.936 | C121: =$C$7*$H$121 -> 10.78 | D121: =$D$7*$H$121 -> 8.624 | E121: =$E$7*$H$121 -> 6.468 | F121: =$F$7*$H$121 -> 4.312 | G121: è | H121: 0.077
A122: 5th | B122: =$B$7*$H$122 -> 11.76 | C122: =$C$7*$H$122 -> 9.8 | D122: =$D$7*$H$122 -> 7.84 | E122: =$E$7*$H$122 -> 5.88 | F122: =$F$7*$H$122 -> 3.92 | G122: è | H122: 0.07
A123: 6th | B123: =$B$7*$H$123 -> 10.92 | C123: =$C$7*$H$123 -> 9.1 | D123: =$D$7*$H$123 -> 7.28 | E123: =$E$7*$H$123 -> 5.46 | F123: =$F$7*$H$123 -> 3.64 | G123: è | H123: 0.065
A124: 7th | B124: =$B$7*$H$124 -> 10.08 | C124: =$C$7*$H$124 -> 8.4 | D124: =$D$7*$H$124 -> 6.72 | E124: =$E$7*$H$124 -> 5.04 | F124: =$F$7*$H$124 -> 3.36 | G124: è | H124: 0.06
A125: 8th | B125: =$B$7*$H$125 -> 9.24 | C125: =$C$7*$H$125 -> 7.7 | D125: =$D$7*$H$125 -> 6.16 | E125: =$E$7*$H$125 -> 4.62 | F125: =$F$7*$H$125 -> 3.08 | G125: è | H125: 0.055
A126: 9th | B126: =$B$7*$H$126 -> 8.4 | C126: =$C$7*$H$126 -> 7 | D126: =$D$7*$H$126 -> 5.6 | E126: =$E$7*$H$126 -> 4.2 | F126: =$F$7*$H$126 -> 2.8 | G126: è | H126: 0.05
A127: 10th | B127: =$B$7*$H$127 -> 7.56 | C127: =$C$7*$H$127 -> 6.3 | D127: =$D$7*$H$127 -> 5.04 | E127: =$E$7*$H$127 -> 3.78 | F127: =$F$7*$H$127 -> 2.52 | G127: è | H127: 0.045
A128: 11th | B128: =$B$7*$H$128 -> 6.72 | C128: =$C$7*$H$128 -> 5.6 | D128: =$D$7*$H$128 -> 4.48 | E128: =$E$7*$H$128 -> 3.36 | F128: =$F$7*$H$128 -> 2.24 | G128: è | H128: 0.04
A129: 12th | B129: =$B$7*$H$129 -> 6.216 | C129: =$C$7*$H$129 -> 5.18 | D129: =$D$7*$H$129 -> 4.144 | E129: =$E$7*$H$129 -> 3.108 | F129: =$F$7*$H$129 -> 2.072 | G129: è | H129: 0.037
A130: 13th | B130: =$B$7*$H$130 -> 5.544 | C130: =$C$7*$H$130 -> 4.62 | D130: =$D$7*$H$130 -> 3.696 | E130: =$E$7*$H$130 -> 2.772 | F130: =$F$7*$H$130 -> 1.848 | G130: è | H130: 0.033
A131: 14th | B131: =$B$7*$H$131 -> 4.872 | C131: =$C$7*$H$131 -> 4.06 | D131: =$D$7*$H$131 -> 3.248 | E131: =$E$7*$H$131 -> 2.436 | F131: =$F$7*$H$131 -> 1.624 | G131: è | H131: 0.029
A132: 15th | B132: =$B$7*$H$132 -> 4.2 | C132: =$C$7*$H$132 -> 3.5 | D132: =$D$7*$H$132 -> 2.8 | E132: =$E$7*$H$132 -> 2.1 | F132: =$F$7*$H$132 -> 1.4 | G132: è | H132: 0.025
A133: 16th | B133: =$B$7*$H$133 -> 3.528 | C133: =$C$7*$H$133 -> 2.94 | D133: =$D$7*$H$133 -> 2.352 | E133: =$E$7*$H$133 -> 1.764 | F133: =$F$7*$H$133 -> 1.176 | G133: è | H133: 0.021
A134: 17th | B134: =$B$7*$H$134 -> 2.856 | C134: =$C$7*$H$134 -> 2.38 | D134: =$D$7*$H$134 -> 1.904 | E134: =$E$7*$H$134 -> 1.428 | F134: =$F$7*$H$134 -> 0.952 | G134: è | H134: 0.017
A135: 18th | B135: =$B$7*$H$135 -> 2.352 | C135: =$C$7*$H$135 -> 1.96 | D135: =$D$7*$H$135 -> 1.568 | E135: =$E$7*$H$135 -> 1.176 | F135: =$F$7*$H$135 -> 0.784 | G135: è | H135: 0.014
A136: 19th | B136: =$B$7*$H$136 -> 2.016 | C136: =$C$7*$H$136 -> 1.68 | D136: =$D$7*$H$136 -> 1.344 | E136: =$E$7*$H$136 -> 1.008 | F136: =$F$7*$H$136 -> 0.672 | G136: è | H136: 0.012
A137: 20th | B137: =$B$7*$H$137 -> 1.68 | C137: =$C$7*$H$137 -> 1.4 | D137: =$D$7*$H$137 -> 1.12 | E137: =$E$7*$H$137 -> 0.84 | F137: =$F$7*$H$137 -> 0.56 | G137: è | H137: 0.01
A138: Totals | B138: =SUM(B118:B137) -> 168 | C138: =SUM(C118:C137) -> 140 | D138: 112 | E138: 84 | F138: 56 | G138: =SUM(B138:F138) -> 560 | H138: =SUM(H118:H137) -> 1
A140: For 1501 or More riders 30 places
A141: Placings | B141: 1D | C141: 2D | D141: 3D | E141: 4D | F141: 5D
A142: 1st | B142: =$B$7*$H142 -> 20.16 | C142: =$C$7*$H142 -> 16.8 | D142: =$D$7*$H142 -> 13.44 | E142: =$E$7*$H142 -> 10.08 | F142: =$F$7*$H142 -> 6.72 | G142: è | H142: 0.12
A143: 2nd | B143: =$B$7*$H143 -> 15.96 | C143: 13.3 | D143: 10.64 | E143: 7.98 | F143: 5.32 | G143: è | H143: 0.095
A144: 3rd | B144: =$B$7*$H144 -> 12.264 | C144: 10.22 | D144: 8.176 | E144: 6.132 | F144: 4.088 | G144: è | H144: 0.073
A145: 4th | B145: =$B$7*$H145 -> 10.416 | C145: 8.68 | D145: 6.944 | E145: 5.208 | F145: 3.472 | G145: è | H145: 0.062
A146: 5th | B146: 8.4 | C146: 7 | D146: 5.6 | E146: 4.2 | F146: 2.8 | G146: è | H146: 0.05
A147: 6th | B147: 7.56 | C147: 6.3 | D147: 5.04 | E147: 3.78 | F147: 2.52 | G147: è | H147: 0.045
A148: 7th | B148: 7.224 | C148: 6.02 | D148: 4.816 | E148: 3.612 | F148: 2.408 | G148: è | H148: 0.043
A149: 8th | B149: 6.72 | C149: 5.6 | D149: 4.48 | E149: 3.36 | F149: 2.24 | G149: è | H149: 0.04
A150: 9th | B150: 6.216 | C150: 5.18 | D150: 4.144 | E150: 3.108 | F150: 2.072 | G150: è | H150: 0.037
A151: 10th | B151: 5.88 | C151: 4.9 | D151: 3.92 | E151: 2.94 | F151: 1.96 | G151: è | H151: 0.035
A152: 11th | B152: 5.544 | C152: 4.62 | D152: 3.696 | E152: 2.772 | F152: 1.848 | G152: è | H152: 0.033
A153: 12th | B153: 5.208 | C153: 4.34 | D153: 3.472 | E153: 2.604 | F153: 1.736 | G153: è | H153: 0.031
A154: 13th | B154: 4.872 | C154: 4.06 | D154: 3.248 | E154: 2.436 | F154: 1.624 | G154: è | H154: 0.029
A155: 14th | B155: 4.536 | C155: 3.78 | D155: 3.024 | E155: 2.268 | F155: 1.512 | G155: è | H155: 0.027
A156: 15th | B156: 4.2 | C156: 3.5 | D156: 2.8 | E156: 2.1 | F156: 1.4 | G156: è | H156: 0.025
A157: 16th | B157: 4.032 | C157: 3.36 | D157: 2.688 | E157: 2.016 | F157: 1.344 | G157: è | H157: 0.024
A158: 17th | B158: 3.864 | C158: 3.22 | D158: 2.576 | E158: 1.932 | F158: 1.288 | G158: è | H158: 0.023
A159: 18th | B159: 3.696 | C159: 3.08 | D159: 2.464 | E159: 1.848 | F159: 1.232 | G159: è | H159: 0.022
A160: 19th | B160: 3.528 | C160: 2.94 | D160: 2.352 | E160: 1.764 | F160: 1.176 | G160: è | H160: 0.021
A161: 20th | B161: 3.36 | C161: 2.8 | D161: 2.24 | E161: 1.68 | F161: 1.12 | G161: è | H161: 0.02
A162: 21st | B162: 3.192 | C162: 2.66 | D162: 2.128 | E162: 1.596 | F162: 1.064 | G162: è | H162: 0.019
A163: 22nd | B163: 3.024 | C163: 2.52 | D163: 2.016 | E163: 1.512 | F163: 1.008 | G163: è | H163: 0.018
A164: 23rd | B164: 2.856 | C164: 2.38 | D164: 1.904 | E164: 1.428 | F164: 0.952 | G164: è | H164: 0.017
A165: 24th | B165: 2.688 | C165: 2.24 | D165: 1.792 | E165: 1.344 | F165: 0.896 | G165: è | H165: 0.016
A166: 25th | B166: 2.52 | C166: 2.1 | D166: 1.68 | E166: 1.26 | F166: 0.84 | G166: è | H166: 0.015
A167: 26th | B167: 2.352 | C167: 1.96 | D167: 1.568 | E167: 1.176 | F167: 0.784 | G167: è | H167: 0.014
A168: 27th | B168: 2.184 | C168: 1.82 | D168: 1.456 | E168: 1.092 | F168: 0.728 | G168: è | H168: 0.013
A169: 28th | B169: 2.016 | C169: 1.68 | D169: 1.344 | E169: 1.008 | F169: 0.672 | G169: è | H169: 0.012
A170: 29th | B170: 1.848 | C170: 1.54 | D170: 1.232 | E170: 0.924 | F170: 0.616 | G170: è | H170: 0.011
A171: 30th | B171: 1.68 | C171: 1.4 | D171: 1.12 | E171: 0.84 | F171: 0.56 | G171: è | H171: 0.01
A172: Totals | B172: =SUM(B142:B171) -> 168 | C172: =SUM(C142:C171) -> 140 | D172: 112 | E172: 84 | F172: 56 | G172: =SUM(B172:F172) -> 560 | H172: =SUM(H142:H171) -> 1

Sheet DON'T TOUCH (hidden)
A2: Yes | C2: S | D2: 5 | E2: X
C3: A | D3: 10
C4: Y | D4: 15
C5: P | D5: BP
D6: SCR
